Cogmind - Beta 9.2 @@@ ROGUE MODE // 2019.11.25 @ 08:33:50 Player: Alexbot Result: Crushed by singularity! Performance ------------- Evolutions (9) 4500 Regions Visited (42) 8400 Robots Destroyed (491) 2455 Value Destroyed (27033) 27033 Prototype IDs (164) 3280 Alien Tech Used (9) 1800 Bonus (45899) 45899 TOTAL SCORE: 93367 Bonus ------- Pacifist 200 Triggered High Security 500 High Alert Combat Kills 4595 Follower Combat Kills 3292 Network Hubs Disabled 800 Aligned with FarCom 300 Met Data Miner 300 Met Zhirov 300 Met Warlord at Base 500 MAIN.C Attacked Warlord 500 A7 Reached Mainframe 300 Met R17 at Cetus 500 Met Warlord at Research 2000 Acquired SGEMP 2000 Delivered SGEMP 2000 Destroyed MAIN.C Guards 500 Met MAIN.C 5000 Destroyed MAIN.C Shell 5000 Zhirov Destroyed MAIN.C 3000 Met Architect 300 Destroyed A8 300 Destroyed A6 400 Destroyed A5 500 Destroyed Architect 15000 Friendly Fire -2188 Cogmind --------- Core Integrity 0/2100 Matter 121/300 Energy 473/2100 System Corruption 0% Temperature Cool (0) Movement Hovering (44) Location -1/Access_0 Parts ------- > --- POWER (1) -------- (None) > --- PROPULSION (5) --- Combat Linear Gravjet Combat Linear Gravjet Combat Linear Gravjet Combat Linear Gravjet Combat Linear Gravjet > --- UTILITY (17) ----- Large Storage Unit Large Storage Unit Large Storage Unit Large Storage Unit Experimental Energy Well Experimental Energy Well Experimental Terrain Scanner Experimental Terrain Scan Processor Experimental Targeting Computer Experimental Core Analyzer Precision Energy Filter Experimental Weapon Cycler Experimental Powered Armor Experimental Powered Armor > --- WEAPON (2) ------- Advanced Remote Datajack > --- INVENTORY (28) --- Advanced Heavy Siege Treads Experimental Gyrokinetic Inverter Experimental Matter Compressor (23) Experimental Matter Compressor (202) Precision Energy Filter Advanced Particle Charger Experimental Focal Shield EM Dispersion Field High-powered Transdimensional Reconstructor Proton Burst Cannon Compact HERF Cannon Vortex Driver Null Cannon Improved Potential Cannon Hypervelocity Linear Accelerator Hypervelocity Linear Accelerator Hypervelocity Linear Accelerator Omega Cannon Core Stripper Peak State ------------ > --- POWER ------------ Zero-point Reactor > --- PROPULSION ------- Combat Linear Gravjet Combat Linear Gravjet Combat Linear Gravjet Combat Linear Gravjet Combat Linear Gravjet > --- UTILITY ---------- Large Storage Unit Large Storage Unit Large Storage Unit Large Storage Unit Experimental Energy Well Experimental Energy Well Experimental Terrain Scan Processor Experimental Targeting Computer Experimental Core Analyzer Experimental Armor Integrity Analyzer Precision Energy Filter Experimental Weapon Cycler Experimental Phase Shifter Experimental Powered Armor Experimental Powered Armor Matter Drive > --- WEAPON ----------- Improved Potential Cannon > --- INVENTORY -------- Advanced Heavy Siege Treads Experimental Gyrokinetic Inverter Improved Fusion Compressor Advanced Energy Well Experimental Matter Compressor Experimental Matter Compressor Experimental Terrain Scanner Advanced Particle Charger Experimental Phase Shifter Experimental Propulsion Shielding Experimental Propulsion Shielding Experimental Focal Shield Beam Splitter Beam Splitter EM Dispersion Field Compact HERF Cannon Vortex Driver Null Cannon Hypervelocity Linear Accelerator Hypervelocity Linear Accelerator Hypervelocity Linear Accelerator Omega Cannon Advanced Remote Datajack Core Stripper [Rating: 235] Favorites ----------- Power Light Angular Momentum Engine Engine Light Angular Momentum Engine Power Core Micro Nuclear Core Reactor Light Antimatter Reactor Propulsion Combat Antigrav System Treads Light Treads Leg Enhanced Flexi-carbon Leg Wheel Armored Huge Wheel Hover Unit Combat Antigrav System Flight Unit Improved Flight Unit Utility Large Storage Unit Device Experimental Sensor Array Storage Large Storage Unit Processor Experimental Signal Interpreter Hackware Improved Hacking Suite Protection Experimental Utility Shielding Artifact Matter Drive Weapon Lance Energy Gun EM Pulse Gun Energy Cannon Advanced Beam Cannon Ballistic Gun Assault Rifle Ballistic Cannon Flak Cannon Launcher Mini Smartbomb Launcher Special Weapon Improved Plasma Cutter Impact Weapon Shock Maul Slashing Weapon Longsword +1 Piercing Weapon Lance Build | -11 -10 -10 -9 -9 -9 -8 -8 -8 -7 -7 -7 -7 -6 -6 -6 -6 -6 -6 -6 -6 -5 -5 -5 -5 -5 -5 -4 -4 -4 -4 -4 -4 -4 -3 -3 -3 -2 -2 -2 -1 -1 -1 ------- Run | Scr Mat Min Mat Min Exi Min Mat Sto Fac Low Low Dat Pro Fac Was Fac Ext Cet Arc Hub Fac Was Fac Upp Upp Zhi Pro Fac Was Fac Upp Upp War Pro Res Tes Res Qua Sec Acc Com Ac0 Slots Evolved 18 | . . . 2 . . . 2 . 2 . . . . 2 . . . . . . 2 . . . . . . 2 . . . . . . 2 . 2 . . 2 . . Power . | . . . . . . . . . . . . . . . . . . . . . . . . . . . . . . . . . . . . . . . . . . . Propulsion 3 | . . . . . . . 2 . . . . . . . . . . . . . . . . . . . . . . . . . . . . . . . . 1 . . Utility 15 | . . . 2 . . . . . 2 . . . . 2 . . . . . . 2 . . . . . . 2 . . . . . . 2 . 2 . . 1 . . Weapon . | . . . . . . . . . . . . . . . . . . . . . . . . . . . . . . . . . . . . . . . . . . . Parts Attached 968 | 6 . . 13 4 6 . 19 29 12 1 4 18 42 7 3 30 18 19 1 20 31 3 130 21 12 7 5 16 5 65 3 2 4 10 23 88 13 19 77 11 74 97 Power 39 | 1 . . 2 2 . . 3 3 1 . . 1 1 . . 4 1 . . 4 1 . 2 . . 1 . . . 2 . . 1 . 3 1 1 1 2 . 1 . Engine 13 | 1 . . 2 2 . . 1 . . . . . 1 . . 1 1 . . 3 1 . . . . . . . . . . . . . . . . . . . . . Core 13 | . . . . . . . 2 3 1 . . 1 . . . 3 . . . 1 . . 2 . . . . . . . . . . . . . . . . . . . Reactor 13 | . . . . . . . . . . . . . . . . . . . . . . . . . . 1 . . . 2 . . 1 . 3 1 1 1 2 . 1 . Propulsion 85 | 2 . . 1 . 3 . 7 11 1 1 . 6 8 . . 1 3 . . 2 6 . 13 . . 2 . . . 2 . . 1 . . 4 . . 4 1 3 3 Treads 22 | 2 . . 1 . 2 . 1 9 . 1 . 1 . . . . . . . 1 . . 3 . . . . . . . . . . . . . . . . . 1 . Leg 4 | . . . . . . . . . . . . 4 . . . . . . . . . . . . . . . . . . . . . . . . . . . . . . Wheel 6 | . . . . . . . . . 1 . . 1 4 . . . . . . . . . . . . . . . . . . . . . . . . . . . . . Hover 49 | . . . . . . . 4 2 . . . . 4 . . 1 3 . . 1 6 . 10 . . 1 . . . 2 . . 1 . . 4 . . 4 1 2 3 Flight 4 | . . . . . 1 . 2 . . . . . . . . . . . . . . . . . . 1 . . . . . . . . . . . . . . . . Utility 535 | 1 . . 5 . 2 . 2 4 7 . 1 7 7 5 . 11 4 5 1 9 18 3 91 16 8 4 3 12 2 42 . 2 2 7 12 49 8 12 45 7 49 72 Device 352 | . . . 1 . . . 1 1 . . . 1 2 2 . 4 4 2 . 7 12 2 65 13 6 2 1 4 2 32 . 2 1 6 9 38 6 6 35 4 35 46 Storage 64 | 1 . . 4 . 2 . . 1 4 . . 2 2 1 . 1 . 2 . . 1 1 12 . . 1 . 3 . 2 . . 1 . 2 4 . 2 3 1 4 7 Processor 10 | . . . . . . . . . . . . . . . . 1 . . . . 2 . 3 . . . . . . . . . . . . . . . . 1 3 . Hackware 11 | . . . . . . . . . 1 . . . . 1 . 1 . . . . 1 . 1 . . . . 2 . . . . . . 1 1 . 1 1 . . . Protection 91 | . . . . . . . 1 2 2 . 1 4 3 1 . 4 . 1 1 2 2 . 10 3 2 1 2 3 . 8 . . . 1 . 6 2 3 6 1 7 12 Artifact 7 | . . . . . . . . . . . . . . . . . . . . . . . . . . . . . . . . . . . . . . . . . . 7 Weapon 309 | 2 . . 5 2 1 . 7 11 3 . 3 4 26 2 3 14 10 14 . 5 6 . 24 5 4 . 2 4 3 19 3 . . 3 8 34 4 6 26 3 21 22 Energy Gun 5 | . . . 2 . . . . . . . . . . . . . . 1 . . . . . . . . . . . . . . . . . 1 . . . . 1 . Energy Cannon 96 | . . . 2 1 1 . 5 . 1 . 1 1 7 1 1 3 . . . . 1 . 9 3 2 . 1 2 . 7 1 . . 1 2 11 1 1 9 1 8 12 Ballistic Gun 5 | 2 . . . . . . . . . . . 1 1 . . . . 1 . . . . . . . . . . . . . . . . . . . . . . . . Ballistic Cannon 46 | . . . 1 1 . . 1 5 . . 1 1 8 . 1 4 4 4 . 2 1 . 1 . . . . . 1 1 . . . . . 1 . . . . 2 6 Launcher 51 | . . . . . . . . 2 . . 1 . 5 1 . 6 2 6 . 2 1 . 2 1 1 . . . 1 4 1 . . 1 2 5 . 2 3 1 1 . Special Weapon 32 | . . . . . . . . . . . . . 2 . 1 . . . . . . . . . . . . 1 . . . . . . . 9 2 3 6 . 4 4 Impact Weapon 1 | . . . . . . . . 1 . . . . . . . . . . . . . . . . . . . . . . . . . . . . . . . . . . Slashing Weapon 25 | . . . . . . . 1 3 2 . . 1 3 . . 1 4 2 . 1 3 . 4 . . . . . . . . . . . . . . . . . . . Piercing Weapon 48 | . . . . . . . . . . . . . . . . . . . . . . . 8 1 1 . 1 1 1 7 1 . . 1 4 7 1 . 8 1 5 . Special Melee Weapon . | . . . . . . . . . . . . . . . . . . . . . . . . . . . . . . . . . . . . . . . . . . . Unidentified Prototypes 67 | . . . 3 . 1 . . 4 . . . 2 3 2 . . . 3 . 5 . 1 4 . . 5 . . . . . . 1 1 3 10 . 1 3 . 11 4 Parts Lost 54 | . . . 1 . . . 3 1 4 . . 3 10 . . 6 2 . . 1 . . 5 . . . 1 . . . . 1 . . 1 . . . . . 2 13 Power 10 | . . . 1 . . . . . 1 . . 1 1 . . 1 . . . 1 . . 1 . . . . . . . . 1 . . 1 . . . . . . 1 Propulsion 6 | . . . . . . . 1 1 2 . . 1 1 . . . . . . . . . . . . . . . . . . . . . . . . . . . . . Utility 29 | . . . . . . . . . 1 . . 1 4 . . 4 2 . . . . . 3 . . . 1 . . . . . . . . . . . . . 1 12 Weapon 9 | . . . . . . . 2 . . . . . 4 . . 1 . . . . . . 1 . . . . . . . . . . . . . . . . . 1 . Highest Loss Streak 3 | . . . 1 . . . 3 1 2 . . 3 3 . . 3 1 . . 1 . . 2 . . . 1 . . . . 1 . . 1 . . . . . 2 3 Average Slot Usage (%) 95 | . 85 85 85 100 100 100 96 99 89 81 84 79 93 93 99 99 98 98 100 87 92 100 96 98 97 93 94 90 99 96 96 97 95 99 96 98 97 98 96 99 98 94 Engine 2 | . 14 14 10 11 11 11 5 . . . . . . 6 6 2 1 6 6 5 4 5 2 . . . . . . . . . . . . . . . . . . . Core 1 | . . . . . . . 3 8 7 7 7 7 6 . . 3 4 . . . . . 2 5 5 . . . . . . . . . . . . . . . . . Reactor 1 | . . . . . . . . . . . . . . . . . . . . . . . . . . 4 5 5 5 4 5 2 1 5 3 4 4 4 3 4 4 3 Treads 4 | . 28 28 22 22 22 22 9 32 14 5 7 7 . . . . . . . 3 1 . . . . . . . . . . . . . . . . . . . . . Hover 16 | . . . . . . . 20 3 . . . . 4 26 26 26 25 26 26 18 19 23 22 23 23 23 23 21 21 20 21 21 21 21 19 19 17 17 17 20 20 19 Device 9 | . . . 4 11 11 11 8 . . . . 4 7 14 13 8 8 11 13 8 13 16 11 14 13 10 4 7 15 9 10 11 10 8 11 8 9 11 10 8 15 16 Storage 25 | . 14 14 25 33 33 33 27 27 29 30 30 28 30 26 26 24 26 29 33 26 24 23 23 23 23 23 23 21 21 22 21 21 25 23 20 25 26 21 26 24 19 22 Processor 6 | . . . . . . . . . . . . . . . . . . . . . 10 11 10 11 11 11 11 10 10 10 10 10 10 10 9 9 8 8 8 12 16 15 Hackware 6 | . . . . . . . . . 4 7 7 2 . 1 6 5 6 6 6 3 4 5 6 5 5 5 5 11 15 12 10 10 10 10 12 14 13 13 13 12 4 . Protection 6 | . . . . . . . . 9 7 7 7 7 5 6 6 12 9 3 . 6 . . 3 2 3 5 11 8 . 5 10 8 5 9 8 7 9 12 9 12 11 9 Energy Cannon 2 | . . . 3 19 22 22 13 . 1 7 6 . 3 2 1 2 . . . . . . . 1 2 . . 1 . . 3 . . . . . . . . . 2 5 Ballistic Cannon 2 | . . . 10 2 . . 2 8 5 . 5 3 3 3 4 3 3 4 6 8 2 5 . . . . . . 4 1 . . . . . . . . . . . . Slashing Weapon 2 | . . . . . . . . 9 7 7 1 . 2 4 . 5 8 4 6 2 3 5 2 . . . . . . . . . . . . . . . . . . . Piercing Weapon 1 | . . . . . . . . . . . . . . . . . . . . . . . 3 4 4 5 4 3 1 4 1 5 5 4 3 3 3 3 3 3 1 . Naked Turns . | . . . . . . . . . . . . . . . . . . . . . . . . . . . . . . . . . . . . . . . . . . . Heaviest Build 154 | 12 12 12 40 40 38 38 45 45 98 98 102 109 118 100 86 94 96 96 96 138 100 98 112 110 103 84 108 104 104 106 100 87 93 106 114 124 129 125 154 138 146 143 Greatest Support 185 | 40 40 40 40 40 40 40 44 88 88 28 28 112 112 88 88 96 96 96 96 96 112 112 115 115 115 115 115 115 115 115 115 115 115 110 120 128 128 128 128 160 185 160 Greatest Overweight (x) 8 | . . . . . . . 1 1 3 3 3 8 2 1 . . 1 . . 1 1 . 3 . . . . . . . . . 1 . 1 1 1 . 1 . 1 . Average Overweight (x) . | . . . . . . . . . 2 3 3 2 . . . . . . . . . . . . . . . . . . . . . . . . . . . . . . Largest Inventory Capacity 40 | 6 6 6 16 16 16 16 16 16 30 30 30 30 36 28 22 28 28 28 28 28 28 28 28 28 28 28 28 28 28 28 28 28 28 28 28 34 34 34 40 40 34 28 Average Capacity 27 | 5 6 6 11 16 16 16 16 16 25 30 30 28 29 27 22 26 28 28 28 28 28 28 27 28 28 28 28 28 28 28 28 28 28 28 28 33 34 34 38 34 27 28 Most Carried 40 | 4 5 5 16 16 16 16 16 16 24 28 30 30 30 28 22 28 28 28 28 28 28 28 28 28 28 28 28 28 28 28 28 28 28 28 28 34 34 34 40 37 34 28 Average Carried 26 | 2 4 5 10 15 15 16 15 15 20 26 28 25 25 26 20 25 27 27 28 27 26 27 27 25 26 27 26 26 27 27 27 27 27 26 27 32 33 33 38 33 27 25 Final Capacity 40 | 6 6 6 16 16 16 16 16 16 30 30 30 30 28 22 22 28 28 28 28 28 28 28 28 28 28 28 28 28 28 28 28 28 28 28 28 34 34 34 40 34 28 28 Final Carried 39 | 4 5 5 16 16 16 16 16 16 24 28 27 28 27 22 22 28 28 28 28 28 28 28 27 26 26 28 27 28 28 28 28 28 28 26 28 34 34 34 39 34 27 23 Class Distribution -------------------- 29% | Scavenger-Mutant 19% | Hauler-Mutant 12% | Mechanic-Scout 10% | Mechanic-Mutant 9% | Hacker-Mutant 6% | Mutant 5% | Hacker-Scout Dominant Class ---------------- Mutant | -10/Materials Mutant | -10/Mines Mutant | -9/Materials Scavenger-Mutant | -9/Mines Scavenger-Mutant | -9/Exiles Mutant | -8/Mines Scavenger-Mutant | -8/Materials Mutant | -8/Storage Hauler-Mutant | -7/Factory Hauler-Mutant | -7/Lower Caves Hauler-Mutant | -7/Lower Caves Hauler-Mutant | -7/Data Miner Hauler-Mutant | -6/Proximity Caves Scavenger-Mutant | -6/Factory Scavenger-Mutant | -6/Waste Scavenger-Mutant | -6/Factory Scavenger-Mutant | -6/Extension Scavenger-Mutant | -6/Cetus Scavenger-Mutant | -6/Archives Scavenger-Mutant | -6/Hub_04(d) Scavenger-Mutant | -5/Factory Scavenger-Mutant | -5/Waste Hauler-Mutant | -5/Factory Mechanic-Scout | -5/Upper Caves Mechanic-Scout | -5/Upper Caves Mechanic-Mutant | -5/Zhirov Mechanic-Mutant | -4/Proximity Caves Hacker-Scout | -4/Factory Hacker-Mutant | -4/Waste Hacker-Scout | -4/Factory Mechanic-Scout | -4/Upper Caves Mechanic-Scout | -4/Upper Caves Mechanic-Mutant | -4/Warlord Mechanic-Scout | -3/Proximity Caves Hacker-Scout | -3/Research Hacker-Mutant | -3/Testing Mechanic-Scout | -2/Research Mechanic-Ninja | -2/Quarantine Hacker-Mutant | -2/Section 7 Hacker-Mutant | -1/Access Mechanic-Mutant | -1/Command Scavenger-Mutant | -1/Access_0 Resources | -11 -10 -10 -9 -9 -9 -8 -8 -8 -7 -7 -7 -7 -6 -6 -6 -6 -6 -6 -6 -6 -5 -5 -5 -5 -5 -5 -4 -4 -4 -4 -4 -4 -4 -3 -3 -3 -2 -2 -2 -1 -1 -1 ----------- Run | Scr Mat Min Mat Min Exi Min Mat Sto Fac Low Low Dat Pro Fac Was Fac Ext Cet Arc Hub Fac Was Fac Upp Upp Zhi Pro Fac Was Fac Upp Upp War Pro Res Tes Res Qua Sec Acc Com Ac0 Matter Collected 25086 | 223 . . 369 270 . . 264 458 318 10 58 306 788 . 170 841 344 542 13 1561 424 293 3029 537 31 90 185 359 208 1805 100 106 286 411 725 2078 247 181 1507 276 2422 3251 Remotely . | . . . . . . . . . . . . . . . . . . . . . . . . . . . . . . . . . . . . . . . . . . . Salvage Created 27980 | . . . 570 281 . . 990 1145 782 64 79 354 1304 . 360 1596 886 752 190 2420 431 293 2765 296 52 90 220 649 214 1524 102 . . 565 702 1655 159 261 2076 177 1494 2482 Parts 1169 | . . . 39 13 . . 47 68 24 5 11 14 52 . 10 64 33 33 18 123 12 6 89 15 3 3 1 22 3 65 5 . . 13 21 75 5 13 56 12 79 117 Haulers Intercepted 21 | . . . 4 . . . . 2 1 . . . . . . 2 . . . . . . 2 . . . . 1 . 2 . . . 1 1 . 1 . 4 . . . Recyclers Shooed 5 | . . . . . . . . 1 . . . . . . . . . . . . . . 1 . . . . . . . . . . . 2 . . 1 . . . . Parts Field Recycled . | . . . . . . . . . . . . . . . . . . . . . . . . . . . . . . . . . . . . . . . . . . . Retrieved Matter . | . . . . . . . . . . . . . . . . . . . . . . . . . . . . . . . . . . . . . . . . . . . Parts Self-Destructed 188 | . . . . . . . . . . . 10 . 32 . . . . . . . . . . 13 3 3 1 . . . 3 . 111 12 . . . . . . . . Prevented 10 | . . . . . . . . . . . . . . . . . . . . . . . . . . . . . . . 1 . 9 . . . . . . . . . Kills | -11 -10 -10 -9 -9 -9 -8 -8 -8 -7 -7 -7 -7 -6 -6 -6 -6 -6 -6 -6 -6 -5 -5 -5 -5 -5 -5 -4 -4 -4 -4 -4 -4 -4 -3 -3 -3 -2 -2 -2 -1 -1 -1 ------- Run | Scr Mat Min Mat Min Exi Min Mat Sto Fac Low Low Dat Pro Fac Was Fac Ext Cet Arc Hub Fac Was Fac Upp Upp Zhi Pro Fac Was Fac Upp Upp War Pro Res Tes Res Qua Sec Acc Com Ac0 Combat Hostiles Destroyed 377 | . . . 10 7 . . 18 25 16 1 5 4 9 . 1 28 14 9 1 40 9 1 32 8 3 . 3 6 1 21 5 . . 9 6 23 1 2 17 2 8 32 Melee 77 | . . . . . . . 2 16 10 1 . . . . . 12 5 . . 13 . . 4 1 . . . . . 3 . . . . 1 7 . . . 1 1 . Guns 5 | . . . 5 . . . . . . . . . . . . . . . . . . . . . . . . . . . . . . . . . . . . . . . Cannons 109 | . . . 5 7 . . 13 3 6 . 1 1 6 . 1 2 2 . 1 18 1 1 4 2 . . . 5 1 4 1 . . 1 1 2 1 1 2 . 7 9 AOE 106 | . . . . . . . 2 6 . . 4 . 2 . . 14 7 4 . 9 5 . 14 5 2 . 1 . . 8 4 . . 8 . 5 . . 1 . . 5 Classes Destroyed 24 | . . . 4 . . . 3 1 2 1 1 . 3 . 1 5 . . . 1 . . . 1 . . . . . . . . . . . 1 . . . . . . Worker 21 | . . . . . . . . . . . . . . . . 1 . . . 4 . . 8 . . . . 1 . 2 . . . . 1 . . 2 . . 2 . Builder 9 | . . . . . . . 2 . . . . . . . . . . . . 3 1 . 1 . . . . . . . . . . . 1 1 . . . . . . Tunneler 1 | . . . . . . . . . 1 . . . . . . . . . . . . . . . . . . . . . . . . . . . . . . . . . Hauler 21 | . . . 4 . . . . 2 1 . . . . . . 2 . . . . . . 2 . . . . 1 . 2 . . . 1 1 . 1 . 4 . . . Recycler 14 | . . . . . . . . . . . . . . . . 1 1 . . . . . 6 . . . . . . 2 . . . . 1 2 . . . . 1 . Minesweeper 1 | . . . . . . . . . . . . . . . . . . . . . . . . 1 . . . . . . . . . . . . . . . . . . Mechanic 6 | . . . . . . . 1 1 . . . . . . . 1 . . . 1 1 . 1 . . . . . . . . . . . . . . . . . . . Operator 7 | . . . . . . . . . . . . . . . . 1 . . 3 1 . . . . . . . . . . . . . . . . . 1 1 . . . Drone 3 | . . . . . . . . . . . . . . . . 2 . . . . . . 1 . . . . . . . . . . . . . . . . . . . Watcher 24 | . . . . . . . . . . . . . . . . 2 1 2 . 3 1 . 5 . . . . 1 . . . . . . . 2 . 1 4 1 1 . Swarmer 46 | . . . . . . . . 3 . . 4 . . . . 5 . . . 4 5 . 5 4 2 . . . . 5 4 . . . . 5 . . . . . . Grunt 138 | . . . 7 6 . . 11 10 11 . . . 1 . . 12 11 1 . 12 2 . 14 2 . . 3 3 . 3 1 . . 9 4 8 . 2 5 . . . Brawler 11 | . . . 1 1 . . . 1 1 . . . . . . 2 . . . 1 1 . 2 . . . . . . 1 . . . . . . . . . . . . Duelist 12 | . . . . . . . 2 2 . . . . 1 . . 3 1 . . 1 1 . 1 . . . . . . . . . . . . . . . . . . . Protector 5 | . . . . . . . . . . . . . 1 . . 1 1 . . 2 . . . . . . . . . . . . . . . . . . . . . . Researcher 1 | . . . . . . . . . . . . . . . . . . . . . . . . . . . . . . . . . . . . 1 . . . . . . Sentry 47 | . . . 2 . . . 5 9 2 . . . 2 . . 2 1 . 1 5 . . 1 . 1 . . 3 . 5 . . . . 1 . . . 6 1 . . Demolisher 6 | . . . . . . . . . . . . . 5 . . 1 . . . . . . . . . . . . . . . . . . . . . . . . . . Specialist 1 | . . . . . . . . . . . . . . . . . . . . 1 . . . . . . . . . . . . . . . . . . . . . . Hunter 19 | . . . . . . . . . . . 1 . . . . 1 . . . . . . 3 . . . . . . 5 . . . . . 2 1 . 5 . 1 . Programmer 28 | . . . . . . . . . 2 . . . . . . 1 . . . 2 . . 5 2 . . . . . 2 . . . . 1 8 . . . 1 4 . Behemoth 1 | . . . . . . . . . . . . . 1 . . . . . . . . . . . . . . . . . . . . . . . . . . . . . Compactor 3 | . . . . . . . . . . . . . . . 1 . . . . . . 1 . . . . . . 1 . . . . . . . . . . . . . Cetus Guard 8 | . . . . . . . . . . . . . . . . . . 8 . . . . . . . . . . . . . . . . . . . . . . . . S7 Guard 1 | . . . . . . . . . . . . . . . . . . . . . . . . . . . . . . . . . . . . . . . 1 . . . Enhanced Grunt 24 | . . . . . . . . . . . . 4 . . . . . . . . . . . . . . . . . . . . . . . . . . . . . 20 Enhanced Sentry 2 | . . . . . . . . . . . . . . . . . . . . . . . . . . . . . . . . . . . . . . . . . . 2 Enhanced Hunter 6 | . . . . . . . . . . . . . . . . . . . . . . . . . . . . . . . . . . . . . . . . . . 6 Lightning 12 | . . . . . . . . . . . . . . . . . . . . 12 . . . . . . . . . . . . . . . . . . . . . . Combat Programmer 2 | . . . . . . . . . . . . . . . . . . . . . . . . . . . . . . . . . . . . . . . . . 2 . Wasp 1 | . . . . . . . . . . . . . . . . 1 . . . . . . . . . . . . . . . . . . . . . . . . . . Thug 2 | . . . . . . . . 1 . . . . . . . . 1 . . . . . . . . . . . . . . . . . . . . . . . . . Martyr 2 | . . . . . . . . . . . . . . . 2 . . . . . . . . . . . . . . . . . . . . . . . . . . . Mutant 1 | . . . . . . . . . . 1 . . . . . . . . . . . . . . . . . . . . . . . . . . . . . . . . Best Kill Streak 12 | . . . 4 4 . . 4 7 4 1 4 3 2 . 1 12 6 5 4 7 6 1 6 4 2 . 3 7 1 8 4 . . 6 5 6 1 3 5 2 6 4 Combat Bots Only 10 | . . . 4 4 . . 3 7 4 1 4 3 2 . 1 10 5 4 1 6 5 1 6 4 2 . 3 5 1 7 4 . . 5 5 6 1 2 4 2 3 4 Max Kills in Single Turn 4 | . . . 1 2 . . 2 3 1 1 3 1 1 . 1 4 4 1 1 4 4 1 3 3 2 . 1 1 1 3 2 . . 2 1 2 1 1 1 1 1 3 Gunslinging . | . . . . . . . . . . . . . . . . . . . . . . . . . . . . . . . . . . . . . . . . . . . Exploded 4 | . . . . . . . 2 2 . . 3 . 1 . . 4 3 1 . 2 4 . 3 3 2 . 1 . . 3 2 . . 1 . 2 . . 1 . . 3 Melee 1 | . . . . . . . 1 1 1 1 . . . . . 1 1 . . 1 . . 1 1 . . . . . 1 . . . . 1 1 . . . 1 1 . Uniques/NPCs Destroyed 5 | . . . . . . . . . . . . . . . . . . . . . . . . . . . . . . . . . . . . . . . . . 1 4 MAIN.C Shell (-1/Command) A8 (-1/Access_0) A6 (-1/Access_0) A5 (-1/Access_0) Architect (-1/Access_0) Combat | -11 -10 -10 -9 -9 -9 -8 -8 -8 -7 -7 -7 -7 -6 -6 -6 -6 -6 -6 -6 -6 -5 -5 -5 -5 -5 -5 -4 -4 -4 -4 -4 -4 -4 -3 -3 -3 -2 -2 -2 -1 -1 -1 -------- Run | Scr Mat Min Mat Min Exi Min Mat Sto Fac Low Low Dat Pro Fac Was Fac Ext Cet Arc Hub Fac Was Fac Upp Upp Zhi Pro Fac Was Fac Upp Upp War Pro Res Tes Res Qua Sec Acc Com Ac0 Damage Taken 27550 | . . . 360 208 . . 688 1395 1199 37 142 890 1927 . 40 1300 917 202 . 1874 187 . 1940 229 144 . 353 294 . 637 93 39 . 79 647 450 71 357 1245 71 1187 8348 Core 3628 | . . . 25 48 . . 103 209 206 . . 47 250 . . 139 162 12 . 212 25 . 303 9 48 . 23 24 . 121 . . . 16 191 89 9 18 180 21 233 905 Absorbed by Shields 2903 | . . . . . . . . . . . . . . . . . 21 121 . . . . 157 12 . . . . . 84 . . . 31 84 186 22 110 291 12 479 1293 Reduced by Siege Mode 30 | . . . . . . . . . . . . . . . . . . . . 8 . . 22 . . . . . . . . . . . . . . . . . . . Core Remaining (%) 70 | 100 . 100 . . . 81 . 43 . . . . 28 . . . . . . 38 . . . . . . 59 . . . . . . 86 . 78 . . 89 . . . Volleys Fired 1164 | . 3 . 35 15 . . 60 17 31 1 13 13 133 . 22 26 9 9 1 83 4 14 52 14 7 . 5 18 36 37 10 . . 15 9 53 11 5 52 2 66 283 Largest 2 | . 2 . 2 2 . . 2 1 1 1 2 2 2 . 1 1 1 2 1 2 1 1 1 1 1 . 1 1 1 1 1 . . 1 1 1 1 1 1 1 1 2 Hottest 250 | . 40 . 112 136 . . 250 44 65 65 109 250 250 . 90 69 57 80 53 114 250 57 250 250 250 . 250 70 57 80 80 . . 80 70 130 70 70 130 70 130 200 Shots Fired 1367 | . 6 . 70 30 . . 104 18 33 3 17 22 145 . 22 26 9 16 1 148 4 14 53 14 7 . 5 18 36 37 10 . . 15 9 53 11 5 52 2 66 286 Gun 55 | . 6 . 33 . . . . . . . . 10 6 . . . . . . . . . . . . . . . . . . . . . . . . . . . . . Cannon 1106 | . . . 37 30 . . 104 13 33 3 14 12 70 . 19 18 6 . 1 141 2 14 48 11 5 . 5 18 36 33 7 . . 1 9 44 6 4 45 2 40 275 Launcher 91 | . . . . . . . . 5 . . 3 . 8 . . 8 3 16 . 7 2 . 5 3 2 . . . . 4 3 . . 14 . 3 . . 4 . 1 . Special 115 | . . . . . . . . . . . . . 61 . 3 . . . . . . . . . . . . . . . . . . . . 6 5 1 3 . 25 11 Kinetic 429 | . 6 . 35 . . . 4 13 28 . 6 19 36 . 10 13 6 . 1 141 . 14 13 . . . . . 36 . . . . . . . . . . . 11 37 Thermal 518 | . . . 2 30 . . 100 . 5 3 8 3 101 . 12 . . . . . 2 . 30 11 5 . 5 . . . . . . . . 13 2 1 9 . 53 123 Explosive 72 | . . . . . . . . 5 . . 3 . 8 . . 7 3 2 . 7 2 . 5 3 2 . . . . 4 3 . . 14 . 3 . . . . 1 . Electromagnetic 325 | . . . 33 . . . . . . . . . . . . 6 . 14 . . . . 5 . . . . 18 . 33 7 . . 1 9 29 6 4 43 2 . 115 Entropic 3 | . . . . . . . . . . . . . . . . . . . . . . . . . . . . . . . . . . . . 3 . . . . . . Robot Hit Streak 32 | . 3 . 14 6 . . 10 10 13 . 2 7 32 . 4 6 5 5 1 9 8 6 15 6 6 . . 8 9 7 2 . . 3 12 15 3 2 22 4 18 20 Robot Miss Streak 10 | . 1 . 6 2 . . 3 9 4 . 6 2 4 . 2 5 10 2 1 9 1 2 6 2 2 . . 2 2 7 6 . . . . 2 2 . 2 . 2 5 Penetration Max 2 | . . . . . . . . . . . . . . . . 2 1 . . 1 . . 1 . . . . . 1 1 . . . . 1 1 . 1 1 . . . Secondary Targets . | . . . . . . . . . . . . . . . . . . . . . . . . . . . . . . . . . . . . . . . . . . . Shots Hit Robots 1336 | . 5 . 56 19 . . 70 67 66 2 9 17 127 . 8 73 33 10 10 101 13 9 91 10 4 2 . 16 38 48 2 . . 8 26 49 7 5 50 8 74 203 Core Hits 953 | . . . 37 9 . . 36 57 41 2 8 15 52 . 6 71 46 29 5 81 18 1 87 14 6 1 5 11 4 49 5 . . 36 12 33 2 6 18 2 31 117 Critical Hits 183 | . . . . 4 . . 5 . 1 . . 1 12 . 3 7 5 . 1 31 . 7 11 . . . . 5 14 2 . . . . 5 12 1 1 11 1 12 31 Critical Kills 46 | . . . . 1 . . 3 . 1 . . . 3 . 1 2 1 . . 16 . 1 3 . . . . 3 1 2 . . . . 1 2 . . 3 . 1 1 Critical Parts Destroyed 99 | . . . . 3 . . 2 . . . . . 7 . . 5 4 . 1 14 . . 8 . . . . 2 3 . . . . . 4 10 1 1 7 1 8 18 Melee Attacks 913 | . . . . . . . 6 75 49 2 . 1 17 . . 73 43 5 9 47 33 . 161 11 6 2 11 7 16 81 2 6 4 13 45 53 23 29 36 14 33 . Impact . | . . . . . . . . . . . . . . . . . . . . . . . . . . . . . . . . . . . . . . . . . . . Slashing 444 | . . . . . . . 6 75 49 2 . 1 17 . . 73 43 5 9 47 33 . 84 . . . . . . . . . . . . . . . . . . . Piercing 469 | . . . . . . . . . . . . . . . . . . . . . . . 77 11 6 2 11 7 16 81 2 6 4 13 45 53 23 29 36 14 33 . Sneak Attacks 59 | . . . . . . . 1 5 1 . . 1 1 . . 4 1 . 5 1 1 . 16 . . . . . . 4 . . . . 5 3 1 3 3 . 3 . Combat Hostiles 4 | . . . . . . . 1 . . . . . . . . 1 1 . . 1 . . . . . . . . . . . . . . . . . . . . . . Follow-up Attacks 8 | . . . . . . . . . . . . . . . . . 3 . . . . . 5 . . . . . . . . . . . . . . . . . . . Damage Inflicted 87195 | . 42 . 956 512 . . 1712 3095 1978 56 440 665 4651 . 426 5937 2424 1444 1011 5780 1477 306 7526 843 444 182 300 763 974 3652 675 . . 2632 1600 4378 346 626 3295 398 6176 19473 Guns 704 | . 42 . 360 . . . . . . . . 195 107 . . . . . . . . . . . . . . . . . . . . . . . . . . . . . Cannons 35275 | . . . 596 512 . . 1376 332 592 . 153 181 1370 . 391 282 113 . 9 1194 64 306 793 214 48 . 15 684 758 1195 107 . . 53 556 2354 179 287 1843 93 3489 15136 Explosions 24143 | . . . . . . . 125 771 . . 287 166 668 . . 2599 1130 1444 . 2476 889 . 2982 512 396 . 285 . . 1255 568 . . 2047 . 754 . . 452 . . 4337 Melee 26084 | . . . . . . . 211 1992 1386 56 . 123 1895 . . 3056 1181 . 1002 2110 524 . 3751 117 . 182 . 79 216 1202 . . . 532 1044 1270 133 339 950 305 2428 . Ramming . | . . . . . . . . . . . . . . . . . . . . . . . . . . . . . . . . . . . . . . . . . . . Kinetic 9484 | . 42 . 575 . . . 103 332 534 . 48 306 620 . 171 188 113 . 9 1194 . 306 294 . . . . . 758 . . . . . . . . . . . 1121 2770 Thermal 26071 | . . . 21 512 . . 1398 . 58 . 105 236 1663 . 255 328 . 101 . . 494 . 1997 323 92 . 300 . . 127 . . . . . 883 34 . 163 . 2627 14354 Explosive 13694 | . . . . . . . . 771 . . 287 . 473 . . 2113 1130 271 . 1628 459 . 1310 403 352 . . . . 1128 568 . . 2047 . 754 . . . . . . Electromagnetic 11862 | . . . 360 . . . . . . . . . . . . 252 . 1072 . 848 . . 174 . . . . 684 . 1195 107 . . 53 556 1471 179 287 2182 93 . 2349 Impact . | . . . . . . . . . . . . . . . . . . . . . . . . . . . . . . . . . . . . . . . . . . . Slashing 16501 | . . . . . . . 211 1992 1386 56 . 123 1895 . . 3056 1181 . 1002 2110 524 . 2965 . . . . . . . . . . . . . . . . . . . Piercing 9583 | . . . . . . . . . . . . . . . . . . . . . . . 786 117 . 182 . 79 216 1202 . . . 532 1044 1270 133 339 950 305 2428 . Highest Corruption 8 | . . . . . . . . 7 6 6 6 6 6 . . . 6 6 3 6 2 4 8 5 5 5 . . 3 3 . . . . 2 4 . 1 3 . . . Average Corruption 3 | . . . . . . . . 6 3 6 6 6 6 . . . 4 4 1 4 1 3 3 3 5 3 . . 1 1 . . . . 1 2 . 1 1 . . . Corruption Purged 35 | . . . . . . . . . . . . . . . . . . 3 3 . . . 11 1 . 5 . . . 3 . . . . . 6 . . 3 . . . Effects 287 | . . . . . . . . 29 15 11 11 9 41 . . . 7 3 17 25 2 2 71 10 1 9 . . 1 5 . . . . 1 13 . 1 3 . . . Message Errors 70 | . . . . . . . . 5 5 4 4 2 5 . . . 2 . 5 4 2 1 21 2 . 3 . . . . . . . . 1 3 . 1 . . . . Matter Fused 62 | . . . . . . . . 10 . 1 1 . 15 . . . . 2 7 5 . . 13 4 . 2 . . . . . . . . . 1 . . 1 . . . Heat Flow Errors 24 | . . . . . . . . 4 . 2 2 . 4 . . . 1 . 1 1 . . 3 1 1 2 . . . . . . . . . 2 . . . . . . Energy Discharges 34 | . . . . . . . . 2 1 1 2 2 2 . . . 2 . 1 3 . . 10 1 . . . . 1 2 . . . . . 3 . . 1 . . . Parts Rejected 2 | . . . . . . . . . . . 1 . . . . . . . . . . . 1 . . . . . . . . . . . . . . . . . . . Data Loss (minor) 42 | . . . . . . . . 3 3 1 . 1 4 . . . 1 1 3 2 . 1 16 1 . 1 . . . 2 . . . . . 2 . . . . . . Data Loss (major) 11 | . . . . . . . . 2 2 . . 1 3 . . . 1 . . 1 . . . . . 1 . . . . . . . . . . . . . . . . Misfires 10 | . . . . . . . . 2 2 2 1 . 2 . . . . . . . . . 1 . . . . . . . . . . . . . . . . . . . Targeting Errors 29 | . . . . . . . . . 2 . . 2 6 . . . . . . 8 . . 6 1 . . . . . 1 . . . . . 2 . . 1 . . . Weapon Failures 3 | . . . . . . . . 1 . . . 1 . . . . . . . 1 . . . . . . . . . . . . . . . . . . . . . . Overload Shots . | . . . . . . . . . . . . . . . . . . . . . . . . . . . . . . . . . . . . . . . . . . . Overflow Damage 4373 | . . . . . . . 33 203 57 . . 63 231 . . 218 89 41 96 193 166 . 863 56 67 24 6 20 . 291 51 . . 135 123 359 . 22 96 17 364 489 Projectiles 940 | . . . . . . . 33 . 2 . . . 6 . . . . . . 8 . . . 13 . . . 20 . 71 4 . . . 2 50 . 22 6 . 300 403 Explosions 857 | . . . . . . . . . . . . . 22 . . 108 53 41 . 75 7 . 110 38 67 . 6 . . 109 47 . . 47 . 18 . . 23 . . 86 Melee 2576 | . . . . . . . . 203 55 . . 63 203 . . 110 36 . 96 110 159 . 753 5 . 24 . . . 111 . . . 88 121 291 . . 67 17 64 . Knockbacks 77 | . . . 11 . . . 1 12 6 . 2 1 4 . . 1 . . . 16 . . 5 . . . . . . . . . . . . . . . . . 7 11 Impact . | . . . . . . . . . . . . . . . . . . . . . . . . . . . . . . . . . . . . . . . . . . . Kinetic 72 | . . . 10 . . . 1 10 6 . 2 1 4 . . 1 . . . 15 . . 5 . . . . . . . . . . . . . . . . . 6 11 Secondary 5 | . . . 1 . . . . 2 . . . . . . . . . . . 1 . . . . . . . . . . . . . . . . . . . . 1 . Self-Inflicted Damage 863 | . . . . . . . . 176 . . 47 . 36 . . . . 43 . 36 16 . 133 75 2 . 2 . . 101 . . . 111 . . . . 85 . . . Shots 26 | . . . . . . . . 4 . . 1 . 3 . . . . 1 . 4 1 . 4 1 1 . 1 . . 2 . . . 2 . . . . 1 . . . Rammed . | . . . . . . . . . . . . . . . . . . . . . . . . . . . . . . . . . . . . . . . . . . . Targets Rammed . | . . . . . . . . . . . . . . . . . . . . . . . . . . . . . . . . . . . . . . . . . . . Kicked . | . . . . . . . . . . . . . . . . . . . . . . . . . . . . . . . . . . . . . . . . . . . Crushed . | . . . . . . . . . . . . . . . . . . . . . . . . . . . . . . . . . . . . . . . . . . . Highest Temperature 424 | . . . 87 309 . . 358 268 29 169 274 310 336 . . 28 241 2 252 235 289 154 407 296 328 266 424 37 88 36 . . . . 50 290 18 . . . 94 140 Average Temperature 85 | . . . 30 132 . . 148 86 11 69 85 161 127 . . 11 89 2 134 56 38 82 82 137 93 97 195 12 32 15 . . . . 13 117 7 . . . 44 51 Received Heat Transfer 4119 | . . . 162 117 . . 360 495 291 . . 114 225 . 18 339 195 20 . 324 18 . 316 9 9 . 126 39 . 56 9 . . . 147 33 . 35 107 . 36 519 Effects 10 | . . . . 2 . . 1 1 . . . . . . . . . . . . . . 3 . . 3 . . . . . . . . . . . . . . . . Energy Bleed 5 | . . . . 1 . . 1 1 . . . . . . . . . . . . . . 2 . . . . . . . . . . . . . . . . . . . Interference 4 | . . . . . . . . . . . . . . . . . . . . . . . 1 . . 3 . . . . . . . . . . . . . . . . Short Circuit 1 | . . . . 1 . . . . . . . . . . . . . . . . . . . . . . . . . . . . . . . . . . . . . . Siege Activations 9 | . . . . . . . . . . . . . . . . . . . . 6 . . 3 . . . . . . . . . . . . . . . . . . . Total Turns 200 | . . . . . . . . . . . . . . . . . . . . 157 . . 43 . . . . . . . . . . . . . . . . . . . Longest Duration 64 | . . . . . . . . . . . . . . . . . . . . 64 . . 30 . . . . . . . . . . . . . . . . . . . Robots Corrupted 64 | . . . . . . . . . . . . . . . . . . 5 . . . . 1 . . . . 1 . 6 . . . . 4 10 . 1 17 1 . 18 Combat Hostiles 60 | . . . . . . . . . . . . . . . . . . 5 . . . . 1 . . . . 1 . 6 . . . . 4 9 . 1 14 1 . 18 Parts Fried 156 | . . . . . . . . . . . . . . . . . . 12 . 9 . . 1 . . . . 7 . 10 . . . . 3 19 1 6 26 . . 62 Impact Corruptions . | . . . . . . . . . . . . . . . . . . . . . . . . . . . . . . . . . . . . . . . . . . . Robots Melted 24 | . . . . . . . 1 . . . . 3 2 . . . . . . . 4 . 11 . 1 . 2 . . . . . . . . . . . . . . . Combat Hostiles 20 | . . . . . . . 1 . . . . 3 1 . . . . . . . 3 . 9 . 1 . 2 . . . . . . . . . . . . . . . Parts Melted 93 | . . . . 2 . . 5 2 . . . 9 11 . . . . . . . 14 . 40 2 1 . 7 . . . . . . . . . . . . . . . Heat Transferred 32335 | . . . 37 925 . . 2977 . 74 . 148 1840 4022 . 261 200 . 100 . . 2560 . 9960 782 400 . 1760 . . 100 . . . . . 350 74 . 161 . 1158 4446 Parts Sabotaged . | . . . . . . . . . . . . . . . . . . . . . . . . . . . . . . . . . . . . . . . . . . . Parts Stolen 6 | . . . . . . . . . . . 2 . . . . . . . . . . . . 3 . . . . . . . . . 1 . . . . . . . . Parts Stripped . | . . . . . . . . . . . . . . . . . . . . . . . . . . . . . . . . . . . . . . . . . . . Power Chain Reactions 2 | . . . . . . . . . . . . . . . . . . 1 . . . . . . . . . . . . . . . . . . . . 1 . . . Missiles Intercepted . | . . . . . . . . . . . . . . . . . . . . . . . . . . . . . . . . . . . . . . . . . . . Alert | -11 -10 -10 -9 -9 -9 -8 -8 -8 -7 -7 -7 -7 -6 -6 -6 -6 -6 -6 -6 -6 -5 -5 -5 -5 -5 -5 -4 -4 -4 -4 -4 -4 -4 -3 -3 -3 -2 -2 -2 -1 -1 -1 ------- Run | Scr Mat Min Mat Min Exi Min Mat Sto Fac Low Low Dat Pro Fac Was Fac Ext Cet Arc Hub Fac Was Fac Upp Upp Zhi Pro Fac Was Fac Upp Upp War Pro Res Tes Res Qua Sec Acc Com Ac0 Peak Influence 2137 | . 23 8 157 131 . . 222 400 300 . . . . 12 8 1743 1142 624 417 2137 1402 338 1408 . . . . 639 201 498 . . . . 206 1100 618 204 408 110 768 . Average Influence 338 | . 8 8 76 90 . . 111 205 190 . . . . 12 4 693 910 423 136 901 1134 321 447 . . . . 437 198 213 . . . . 107 345 236 84 86 50 446 . Maximum Alert Level 5 | . . . . . . . 1 2 1 . . . . . . 5 4 2 2 5 4 1 4 . . . . 2 1 2 . . . . 1 4 2 1 2 . 3 . Low Security (%) 52 | 100 100 100 100 100 . 100 98 55 54 . . . . 100 100 25 . 29 60 10 . . 21 . . . . 21 35 58 . . . . 96 46 54 89 89 100 55 . Level 1 17 | . . . . . . . 1 44 45 . . . . . . 13 . 12 23 6 . 100 25 . . . . . 64 26 . . . . 3 13 44 10 10 . 5 . Level 2 15 | . . . . . . . . . . . . . . . . 25 6 58 16 32 . . 31 . . . . 78 . 15 . . . . . 27 . . . . 33 . Level 3 8 | . . . . . . . . . . . . . . . . 9 90 . . 8 33 . 20 . . . . . . . . . . . . 11 . . . . 5 . Level 4 4 | . . . . . . . . . . . . . . . . 12 3 . . 26 66 . 1 . . . . . . . . . . . . 1 . . . . . . Level 5 1 | . . . . . . . . . . . . . . . . 13 . . . 13 . . . . . . . . . . . . . . . . . . . . . . High Security . | . . . . . . . . . . . . . . . . . . . . 2 . . . . . . . . . . . . . . . . . . . . . . Max Security . | . . . . . . . . . . . . . . . . . . . . . . . . . . . . . . . . . . . . . . . . . . . Squads Dispatched 94 | . 1 . 1 . . . 3 5 6 . . . . . . 11 4 . . 6 5 . 15 . 1 . . 2 . 6 . . . . 2 8 . 7 6 1 4 . Investigation 13 | . . . 1 . . . 2 . 1 . . . . . . 1 2 . . . . . 4 . 1 . . . . 1 . . . . . . . . . . . . Extermination 31 | . . . . . . . . . 1 . . . . . . 2 . . . 2 1 . 5 . . . . 1 . 5 . . . . 2 3 . 2 3 1 3 . Reinforcement 26 | . 1 . . . . . 1 3 3 . . . . . . 2 . . . 1 1 . 5 . . . . 1 . . . . . . . 4 . 2 2 . . . Assault 18 | . . . . . . . . 2 . . . . . . . 4 2 . . 3 3 . 1 . . . . . . . . . . . . 1 . . 1 . 1 . Garrison 6 | . . . . . . . . . 1 . . . . . . 2 . . . . . . . . . . . . . . . . . . . . . 3 . . . . Intercept . | . . . . . . . . . . . . . . . . . . . . . . . . . . . . . . . . . . . . . . . . . . . Construction Impeded 7 | . . . . . . . 1 . . . . . . . . . . . . . 1 . 4 . . . . . . . . . . . . 1 . . . . . . Haulers Reinforced 4 | . . . . . . . . . 1 . . . . . . . . . . . . . 1 . . . . 1 . . . . . . . . . . 1 . . . Stealth | -11 -10 -10 -9 -9 -9 -8 -8 -8 -7 -7 -7 -7 -6 -6 -6 -6 -6 -6 -6 -6 -5 -5 -5 -5 -5 -5 -4 -4 -4 -4 -4 -4 -4 -3 -3 -3 -2 -2 -2 -1 -1 -1 --------- Run | Scr Mat Min Mat Min Exi Min Mat Sto Fac Low Low Dat Pro Fac Was Fac Ext Cet Arc Hub Fac Was Fac Upp Upp Zhi Pro Fac Was Fac Upp Upp War Pro Res Tes Res Qua Sec Acc Com Ac0 Distress Signals 43 | . . . 4 . . . 4 4 . . . . 8 . . 1 . 2 . 1 . . 2 . . . . 1 . 1 . . . 1 . . 5 . 1 2 6 . Communications Jammed 82 | . . . . . . . . . . . . . . . . . . . . . . . 17 . . . . . . 2 . . . . . 17 . 23 16 . 7 . Distress Signals 82 | . . . . . . . . . . . . . . . . . . . . . . . 17 . . . . . . 2 . . . . . 17 . 23 16 . 7 . Times Spotted 655 | . 1 . 14 7 . . 27 35 31 1 5 4 16 . 5 51 26 11 10 62 23 5 58 11 1 . 4 9 9 35 2 5 6 3 10 28 7 12 21 8 31 61 Peak Tracking Total 12 | . 1 . 3 4 . . 4 8 8 1 4 4 4 . 2 12 6 5 2 10 6 4 7 4 3 . 4 2 5 6 3 5 6 4 4 5 4 4 4 5 5 5 Tactical Retreats 53 | . . . . . . . 4 . 4 . . . 2 . . 4 1 . . 7 2 . 6 . . . 1 1 2 4 . 2 . . 1 7 1 3 1 . . . Traps | -11 -10 -10 -9 -9 -9 -8 -8 -8 -7 -7 -7 -7 -6 -6 -6 -6 -6 -6 -6 -6 -5 -5 -5 -5 -5 -5 -4 -4 -4 -4 -4 -4 -4 -3 -3 -3 -2 -2 -2 -1 -1 -1 ------- Run | Scr Mat Min Mat Min Exi Min Mat Sto Fac Low Low Dat Pro Fac Was Fac Ext Cet Arc Hub Fac Was Fac Upp Upp Zhi Pro Fac Was Fac Upp Upp War Pro Res Tes Res Qua Sec Acc Com Ac0 Traps Triggered 36 | . . . 1 . . . 2 7 1 . . . . 1 . . 3 . . 2 1 . 1 . . . . 1 . . . . . . . . . 1 4 . 11 . Indirectly . | . . . . . . . . . . . . . . . . . . . . . . . . . . . . . . . . . . . . . . . . . . . Trap Hack Attempts . | . . . . . . . . . . . . . . . . . . . . . . . . . . . . . . . . . . . . . . . . . . . Triggered . | . . . . . . . . . . . . . . . . . . . . . . . . . . . . . . . . . . . . . . . . . . . Disarmed . | . . . . . . . . . . . . . . . . . . . . . . . . . . . . . . . . . . . . . . . . . . . Reprogrammed . | . . . . . . . . . . . . . . . . . . . . . . . . . . . . . . . . . . . . . . . . . . . Reused . | . . . . . . . . . . . . . . . . . . . . . . . . . . . . . . . . . . . . . . . . . . . Traps Extracted . | . . . . . . . . . . . . . . . . . . . . . . . . . . . . . . . . . . . . . . . . . . . Installed 1 | . . . . . . . . . . . . . . . . . . . . . . . . 1 . . . . . . . . . . . . . . . . . . Triggered 12 | . . . . . . . . . . . 1 . . . . . . . . . . . . 2 . . . . . . 1 . 8 . . . . . . . . . Machines | -11 -10 -10 -9 -9 -9 -8 -8 -8 -7 -7 -7 -7 -6 -6 -6 -6 -6 -6 -6 -6 -5 -5 -5 -5 -5 -5 -4 -4 -4 -4 -4 -4 -4 -3 -3 -3 -2 -2 -2 -1 -1 -1 ---------- Run | Scr Mat Min Mat Min Exi Min Mat Sto Fac Low Low Dat Pro Fac Was Fac Ext Cet Arc Hub Fac Was Fac Upp Upp Zhi Pro Fac Was Fac Upp Upp War Pro Res Tes Res Qua Sec Acc Com Ac0 Machines Disabled 138 | . . . . . . . . 3 . 1 . 1 3 . . 17 1 3 . 41 7 . 15 . 1 . . 3 . 6 . . . . . 11 . 2 12 . 5 6 Max in Single Turn 20 | . . . . . . . . 1 . 1 . 1 1 . . 8 1 . . 20 4 . 3 . 1 . . 1 . 2 . . . . . 1 . 1 2 . 2 1 Garrison Access 9 | . . . . . . . . 1 . . . . . . . 1 . . . . 2 . 2 . . . . . . . . . . . . . 1 . 1 1 . . Phase Generator 1 | . . . . . . . . . . . . . . . . . . . . . . . . . . . . . . . . . . . . . . . . . 1 . Network Hub 4 | . . . . . . . . . . . . . . . . . . . . 4 . . . . . . . . . . . . . . . . . . . . . . Machines Sabotaged . | . . . . . . . . . . . . . . . . . . . . . . . . . . . . . . . . . . . . . . . . . . . Garrisons Compromised . | . . . . . . . . . . . . . . . . . . . . . . . . . . . . . . . . . . . . . . . . . . . Overloaded Fab Kills . | . . . . . . . . . . . . . . . . . . . . . . . . . . . . . . . . . . . . . . . . . . . Fab Network Shutdowns 4 | . . . . . . . . . . . . . . . . 1 . . . . . . 1 . . . . 1 . . . . . . . 1 . . . . . . Hacking | -11 -10 -10 -9 -9 -9 -8 -8 -8 -7 -7 -7 -7 -6 -6 -6 -6 -6 -6 -6 -6 -5 -5 -5 -5 -5 -5 -4 -4 -4 -4 -4 -4 -4 -3 -3 -3 -2 -2 -2 -1 -1 -1 --------- Run | Scr Mat Min Mat Min Exi Min Mat Sto Fac Low Low Dat Pro Fac Was Fac Ext Cet Arc Hub Fac Was Fac Upp Upp Zhi Pro Fac Was Fac Upp Upp War Pro Res Tes Res Qua Sec Acc Com Ac0 Machines Accessed 172 | . 1 . 1 . 1 . 4 10 3 . . 3 . . . 10 12 2 . 5 10 . 25 . 1 4 . 4 . 13 . 1 2 . 5 8 3 9 15 6 14 . Terminals 113 | . 1 . 1 . . . 4 8 2 . . . . . . 3 11 2 . 5 5 . 14 . 1 . . 2 . 6 . 1 . . 4 6 2 6 12 4 13 . Fabricators 12 | . . . . . . . . . . . . . . . . 3 . . . . 1 . 3 . . . . 1 . 2 . . . . . 1 . . . 1 . . Repair Stations 21 | . . . . . . . . 1 1 . . . . . . 2 1 . . . 1 . 5 . . . . 1 . 4 . . . . . 1 . 2 1 . 1 . Recycling Units . | . . . . . . . . . . . . . . . . . . . . . . . . . . . . . . . . . . . . . . . . . . . Scanalyzers 8 | . . . . . . . . . . . . . . . . 1 . . . . 1 . 1 . . . . . . 1 . . . . 1 . . 1 2 . . . Garrison Access 8 | . . . . . . . . 1 . . . . . . . 1 . . . . 2 . 2 . . . . . . . . . . . . . 1 . . 1 . . Total Hacks 864 | . 1 . 1 . 1 . 12 35 11 . . 21 . . . 37 43 12 . 15 60 . 159 . 8 17 . 19 . 91 . 7 2 . 24 47 12 54 72 35 68 . Successful 557 | . 1 . 1 . 1 . 5 20 9 . . 21 . . . 19 30 7 . 10 32 . 87 . 8 17 . 15 . 54 . 7 2 . 13 28 6 36 61 21 46 . Failed 305 | . . . . . . . 7 15 2 . . . . . . 18 13 5 . 5 28 . 71 . . . . 4 . 36 . . . . 11 19 6 18 11 14 22 . Catastrophic 38 | . . . . . . . . 3 . . . . . . . 4 2 2 . 1 6 . 7 . . . . 1 . 2 . . . . 1 3 2 1 . 2 1 . Database Lockouts 4 | . . . . . . . . . . . . . . . . . . . . . . . 1 . . . . . . 3 . . . . . . . . . . . . Manual 361 | . 1 . 1 . 1 . 5 17 4 . . . . . . 6 21 11 . 10 23 . 54 . . . . 7 . 45 . . 1 . 7 27 4 20 32 22 42 . Terminals 560 | . 1 . 1 . . . 12 29 9 . . . . . . 11 35 12 . 15 38 . 87 . 8 . . 10 . 53 . 7 . . 18 40 11 31 46 23 63 . Fabricators 79 | . . . . . . . . . . . . . . . . 12 . . . . 6 . 23 . . . . 3 . 19 . . . . . 5 . . . 11 . . Repair Stations 141 | . . . . . . . . 5 2 . . . . . . 7 8 . . . 6 . 42 . . . . 6 . 18 . . . . . 2 . 18 22 . 5 . Recycling Units . | . . . . . . . . . . . . . . . . . . . . . . . . . . . . . . . . . . . . . . . . . . . Scanalyzers 31 | . . . . . . . . . . . . . . . . 6 . . . . 5 . 4 . . . . . . 1 . . . . 6 . . 5 4 . . . Garrison Access 12 | . . . . . . . . 1 . . . . . . . 1 . . . . 5 . 3 . . . . . . . . . . . . . 1 . . 1 . . Terminal Hacks 283 | . 1 . 1 . 1 . 5 11 7 . . 21 . . . 3 16 4 . 4 13 . 23 . 8 17 . 7 . 22 . 7 2 . 6 18 5 16 29 10 26 . Record 26 | . . . . . . . . . . . . 6 . . . . . . . . . . . . 8 5 . . . . . 7 . . . . . . . . . . Part Schematic 26 | . . . . . . . . 2 . . . 6 . . . . . . . 1 1 . 5 . . 4 . 2 . 2 . . . . . 1 . . . 2 . . Robot Schematic 8 | . . . . . . . . . . . . 6 . . . . . . . . . . . . . . . . . . . . . . . . . . 1 1 . . Robot Analysis 14 | . . . . . . . . . . . . . . . . . 3 . . . . . . . . 4 . . . . . . . . . 2 . 4 . 1 . . Prototype ID Bank 20 | . . . . . . . . . 2 . . 3 . . . . . . . . 1 . . . . 4 . . . 2 . . . . 1 3 1 1 . . 2 . Open Door 15 | . . . . . . . . 3 . . . . . . . . 3 . . . . . . . . . . . . . . . 2 . . . . . 3 3 1 . Level Access Points 3 | . . . . . . . . . . . . . . . . . . . . . . . 1 . . . . . . . . . . . . 1 . . . . 1 . Branch Access Points 11 | . 1 . 1 . . . 1 . 1 . . . . . . 1 . . . . 1 . 1 . . . . 1 . 1 . . . . 1 . 1 . . . . . Emergency Access Points 4 | . . . . . . . . . . . . . . . . . . . . . . . . . . . . . . . . . . . . 1 . 1 . . 2 . Machine Index 4 | . . . . . . . . . . . . . . . . . . . . . . . . . . . . . . 1 . . . . 1 . . . 2 . . . Terminal Index 8 | . . . . . . . . 1 1 . . . . . . . 1 . . . 1 . 1 . . . . . . 1 . . . . . . 1 . . . 1 . Fabricator Index 4 | . . . . . . . . . 1 . . . . . . 1 . . . . . . 1 . . . . . . 1 . . . . . . . . . . . . Alert Level 21 | . . . . . . . . 1 . . . . . . . . 2 1 . 1 1 . 2 . . . . . . 1 . . . . . 2 . 3 5 . 2 . Unreport Threat 37 | . . . . . . . 2 . . . . . . . . . 4 3 . . 3 . 3 . . . . . . 2 . . . . 2 1 2 . 6 2 7 . Locate Traps 34 | . . . . . . . 1 2 . . . . . . . . 1 . . 1 3 . 2 . . . . 2 . 4 . . . . 1 4 . 1 5 . 7 . Dispatch Records 4 | . . . . . . . . . . . . . . . . . . . . . . . . . . . . . . 1 . . . . . . . 2 1 . . . Investigation Status 1 | . . . . . . . . . . . . . . . . . . . . . 1 . . . . . . . . . . . . . . . . . . . . . Recall Investigation 3 | . . . . . . . . . . . . . . . . . 1 . . . . . 1 . . . . . . 1 . . . . . . . . . . . . Recall Extermination 12 | . . . . . . . . . . . . . . . . . . . . . . . 2 . . . . 1 . 3 . . . . . . . 1 3 1 1 . Recall Reinforcements 6 | . . . . . . . . 2 . . . . . . . . . . . . . . . . . . . . . . . . . . . 1 . 2 1 . . . Recall Assault 4 | . . . . . . . . . . . . . . . . . 1 . . . 1 . . . . . . . . . . . . . . 1 . . 1 . . . Hauler Manifests 8 | . . . . . . . . . 1 . . . . . . . . . . 1 . . 1 . . . . 1 . 1 . . . . . 1 . 1 1 . . . Registered Components 1 | . . . . . . . . . 1 . . . . . . . . . . . . . . . . . . . . . . . . . . . . . . . . . Registered Prototypes 2 | . . . . . . . . . . . . . . . . . . . . . . . 1 . . . . . . 1 . . . . . . . . . . . . Zone Layout 4 | . . . . . . . 1 . . . . . . . . 1 . . . . . . 2 . . . . . . . . . . . . . . . . . . . EX-Prototype ID Bank 1 | . . . . . 1 . . . . . . . . . . . . . . . . . . . . . . . . . . . . . . . . . . . . . Disengage Seal 2 | . . . . . . . . . . . . . . . . . . . . . . . . . . . . . . . . . . . . . . . . . 2 . Fabricator Hacks 49 | . . . . . . . . . . . . . . . . 7 . . . . 3 . 17 . . . . 2 . 10 . . . . . 3 . . . 7 . . Network Status 6 | . . . . . . . . . . . . . . . . . . . . . . . 4 . . . . . . . . . . . . . . . . 2 . . Load Schematic 21 | . . . . . . . . . . . . . . . . 4 . . . . 1 . 7 . . . . 1 . 4 . . . . . 1 . . . 3 . . Build 22 | . . . . . . . . . . . . . . . . 3 . . . . 2 . 6 . . . . 1 . 6 . . . . . 2 . . . 2 . . Repair Station Hacks 102 | . . . . . . . . 4 1 . . . . . . 4 8 . . . 5 . 25 . . . . 4 . 14 . . . . . 2 . 12 19 . 4 . Scan Component 56 | . . . . . . . . 2 1 . . . . . . 2 4 . . . 3 . 14 . . . . 3 . 7 . . . . . 1 . 7 10 . 2 . Repair 46 | . . . . . . . . 2 . . . . . . . 2 4 . . . 2 . 11 . . . . 1 . 7 . . . . . 1 . 5 9 . 2 . Recycling Unit Hacks . | . . . . . . . . . . . . . . . . . . . . . . . . . . . . . . . . . . . . . . . . . . . Scanalyzer 23 | . . . . . . . . . . . . . . . . 3 . . . . 4 . 4 . . . . . . 1 . . . . 4 . . 4 3 . . . Insert Component 19 | . . . . . . . . . . . . . . . . 2 . . . . 3 . 2 . . . . . . 1 . . . . 4 . . 4 3 . . . Analyze 4 | . . . . . . . . . . . . . . . . 1 . . . . 1 . 2 . . . . . . . . . . . . . . . . . . . Garrison Access Hacks 8 | . . . . . . . . 1 . . . . . . . 1 . . . . 2 . 2 . . . . . . . . . . . . . 1 . . 1 . . Seal Access 8 | . . . . . . . . 1 . . . . . . . 1 . . . . 2 . 2 . . . . . . . . . . . . . 1 . . 1 . . Unauthorized Hacks 228 | . . . . . . . . 12 2 . . . . . . 2 15 7 . 14 15 . 44 . . . . 4 . 18 . . . . 6 14 2 10 20 6 37 . Terminals 82 | . . . . . . . . 4 1 . . . . . . 1 6 3 . 6 3 . 12 . . . . 1 . 6 . . . . 3 5 . 4 10 1 16 . Track 22 | . . . . . . . . . . . . . . . . . 2 1 . 3 . . 2 . . . . . . . . . . . . 1 . 1 5 . 7 . Assimilate 9 | . . . . . . . . . . . . . . . . . . . . . . . 3 . . . . . . 3 . . . . 1 1 . . 1 . . . Botnet 36 | . . . . . . . . 4 1 . . . . . . 1 3 1 . 2 2 . 5 . . . . 1 . 1 . . . . 2 2 . 3 3 1 4 . Disrupt 8 | . . . . . . . . . . . . . . . . . 1 1 . . . . 1 . . . . . . 1 . . . . . . . . . . 4 . Operators 7 | . . . . . . . . . . . . . . . . . . . . 1 1 . 1 . . . . . . 1 . . . . . 1 . . 1 . 1 . Fabricators 10 | . . . . . . . . . . . . . . . . . . . . . 2 . 4 . . . . 1 . 1 . . . . . . . . . 2 . . Report 3 | . . . . . . . . . . . . . . . . . . . . . 1 . 1 . . . . . . 1 . . . . . . . . . . . . Prioritize 1 | . . . . . . . . . . . . . . . . . . . . . . . . . . . . . . . . . . . . . . . . 1 . . Siphon 6 | . . . . . . . . . . . . . . . . . . . . . 1 . 3 . . . . 1 . . . . . . . . . . . 1 . . Repair Stations . | . . . . . . . . . . . . . . . . . . . . . . . . . . . . . . . . . . . . . . . . . . . Recycling Units . | . . . . . . . . . . . . . . . . . . . . . . . . . . . . . . . . . . . . . . . . . . . Scanalyzers . | . . . . . . . . . . . . . . . . . . . . . . . . . . . . . . . . . . . . . . . . . . . Garrison Access . | . . . . . . . . . . . . . . . . . . . . . . . . . . . . . . . . . . . . . . . . . . . Data Cores Recovered . | . . . . . . . . . . . . . . . . . . . . . . . . . . . . . . . . . . . . . . . . . . . Used . | . . . . . . . . . . . . . . . . . . . . . . . . . . . . . . . . . . . . . . . . . . . Hacking Detections 118 | . . . 1 . . . 4 8 3 . . . . . . 8 12 1 . 4 8 . 18 . 1 . . 3 . 10 . 1 . . 4 5 2 4 6 4 11 . Full Trace Events 7 | . . . . . . . . 1 . . . . . . . 1 2 . . . . . 2 . 1 . . . . . . . . . . . . . . . . . Feedback Events . | . . . . . . . . . . . . . . . . . . . . . . . . . . . . . . . . . . . . . . . . . . . Feedback Blocked . | . . . . . . . . . . . . . . . . . . . . . . . . . . . . . . . . . . . . . . . . . . . Robot Schematics Acquired 8 | . . . . . . . . . . . . 6 . . . . . . . . . . . . . . . . . . . . . . . . . . 1 1 . . Robots Built . | . . . . . . . . . . . . . . . . . . . . . . . . . . . . . . . . . . . . . . . . . . . Matter . | . . . . . . . . . . . . . . . . . . . . . . . . . . . . . . . . . . . . . . . . . . . Time . | . . . . . . . . . . . . . . . . . . . . . . . . . . . . . . . . . . . . . . . . . . . Total Robot Build Rating . | . . . . . . . . . . . . . . . . . . . . . . . . . . . . . . . . . . . . . . . . . . . Part Schematics Acquired 30 | . . . . . . . . 2 . . . 6 . . . 1 . . . 1 2 . 7 . . 4 . 2 . 2 . . . . . 1 . . . 2 . . Parts Built 20 | . . . . . . . . . . . . . . . . 2 . . . . 2 . 5 . . . . 1 . 4 . . . . . 4 . . . 2 . . Matter 4605 | . . . . . . . . . . . . . . . . 855 . . . . 192 . 1065 . . . . 213 . 1100 . . . . . 556 . . . 624 . . Time 1495 | . . . . . . . . . . . . . . . . 380 . . . . 64 . 556 . . . . 76 . 217 . . . . . 92 . . . 110 . . Total Part Build Rating 132 | . . . . . . . . . . . . . . . . 10 . . . . 16 . 25 . . . . 5 . 22 . . . . . 36 . . . 18 . . Parts Repaired 45 | . . . . . . . . 2 . . . . . . . 2 4 . . . 2 . 11 . . . . 1 . 6 . . . . . 1 . 5 9 . 2 . Time 1982 | . . . . . . . . 118 . . . . . . . 90 194 . . . 118 . 336 . . . . 54 . 346 . . . . . 80 . 192 402 . 52 . Parts Recycled . | . . . . . . . . . . . . . . . . . . . . . . . . . . . . . . . . . . . . . . . . . . . Recycled Matter . | . . . . . . . . . . . . . . . . . . . . . . . . . . . . . . . . . . . . . . . . . . . Retrieved Matter . | . . . . . . . . . . . . . . . . . . . . . . . . . . . . . . . . . . . . . . . . . . . Retrieved Components . | . . . . . . . . . . . . . . . . . . . . . . . . . . . . . . . . . . . . . . . . . . . Parts Scanalyzed 5 | . . . . . . . . . . . . . . . . 1 . . . . 2 . 2 . . . . . . . . . . . . . . . . . . . Part Schematics Acquired 4 | . . . . . . . . . . . . . . . . 1 . . . . 1 . 2 . . . . . . . . . . . . . . . . . . . Parts Damaged . | . . . . . . . . . . . . . . . . . . . . . . . . . . . . . . . . . . . . . . . . . . . Bothacking | -11 -10 -10 -9 -9 -9 -8 -8 -8 -7 -7 -7 -7 -6 -6 -6 -6 -6 -6 -6 -6 -5 -5 -5 -5 -5 -5 -4 -4 -4 -4 -4 -4 -4 -3 -3 -3 -2 -2 -2 -1 -1 -1 ------------ Run | Scr Mat Min Mat Min Exi Min Mat Sto Fac Low Low Dat Pro Fac Was Fac Ext Cet Arc Hub Fac Was Fac Upp Upp Zhi Pro Fac Was Fac Upp Upp War Pro Res Tes Res Qua Sec Acc Com Ac0 Used RIF Installer . | . . . . . . . . . . . . . . . . . . . . . . . . . . . . . . . . . . . . . . . . . . . Robots Hacked 9 | . . . . . . . . . . . . . . . . . . . . . . . . . . . . . . . . . . . . 1 3 . . . 1 4 Non-combat 1 | . . . . . . . . . . . . . . . . . . . . . . . . . . . . . . . . . . . . . 1 . . . . . Combat 8 | . . . . . . . . . . . . . . . . . . . . . . . . . . . . . . . . . . . . 1 2 . . . 1 4 Robot Hacks Applied 9 | . . . . . . . . . . . . . . . . . . . . . . . . . . . . . . . . . . . . 1 3 . . . 1 4 parse_system 9 | . . . . . . . . . . . . . . . . . . . . . . . . . . . . . . . . . . . . 1 3 . . . 1 4 Relay Couplers Released 8 | . . . . . . . . . . . . . . . . 3 . . . . . . . . . . . . . . . . . . . . 4 . 1 . . . Machine Destruction 4 | . . . . . . . . . . . . . . . . 3 . . . . . . . . . . . . . . . . . . . . . . 1 . . . Programmers 4 | . . . . . . . . . . . . . . . . . . . . . . . . . . . . . . . . . . . . . 4 . . . . . Robots Rewired 15 | . . . . . . . . . . . . . 2 . . . 12 . . . . . . . . . . . . . . . . . . 1 . . . . . . Allies Hacked . | . . . . . . . . . . . . . . . . . . . . . . . . . . . . . . . . . . . . . . . . . . . Hacks Repelled 3 | . . . . . . . . . . . . . . . . . . . . . . . . . . . . . . . . . . . . . . . . . 3 . Allies | -11 -10 -10 -9 -9 -9 -8 -8 -8 -7 -7 -7 -7 -6 -6 -6 -6 -6 -6 -6 -6 -5 -5 -5 -5 -5 -5 -4 -4 -4 -4 -4 -4 -4 -3 -3 -3 -2 -2 -2 -1 -1 -1 -------- Run | Scr Mat Min Mat Min Exi Min Mat Sto Fac Low Low Dat Pro Fac Was Fac Ext Cet Arc Hub Fac Was Fac Upp Upp Zhi Pro Fac Was Fac Upp Upp War Pro Res Tes Res Qua Sec Acc Com Ac0 Total Allies 109 | . . . . . . . . 2 . . . . 2 . 19 . 16 4 . . . . 3 . . . . . . 3 . . . . 1 1 . . 1 3 54 . Largest Group 19 | . . . . . . . . 2 . . . . 1 . 19 13 8 11 8 7 . . 2 1 . . . . . 2 2 2 1 1 1 1 . . 1 3 18 . Highest-Rated Group 963 | . . . . . . . . 62 . . . . 34 . 696 475 374 725 505 341 . . 20 10 . . . . . 52 52 52 26 26 10 150 . . 10 359 963 . Highest-Rated Ally 156 | . . . . . . . . 31 . . . . 34 . 50 46 156 156 156 94 . . 10 10 . . . . . 26 26 26 26 26 10 150 . . 10 124 90 . Total Orders 58 | . . . . . . . . 1 . . . . . . . 3 . . . 1 . . 18 1 . . . . . 13 6 2 7 1 . 3 . . 2 . . . STAY 17 | . . . . . . . . . . . . . . . . . . . . 1 . . 4 . . . . . . 6 3 1 1 1 . . . . . . . . GOTO 16 | . . . . . . . . . . . . . . . . . . . . . . . 5 1 . . . . . 3 1 . 2 . . 2 . . 2 . . . FOLLOW 20 | . . . . . . . . . . . . . . . . . . . . . . . 8 . . . . . . 4 2 1 4 . . 1 . . . . . . EXPLORE 5 | . . . . . . . . 1 . . . . . . . 3 . . . . . . 1 . . . . . . . . . . . . . . . . . . . Ally Attacks 936 | . . . . . . . . 4 . . . . . . 176 124 102 36 13 58 . . . . . . . . . . . . . . . 22 . . . 31 370 . Total Damage 26070 | . . . . . . . . 85 . . . . . . 3790 2868 1867 778 316 1695 . . . . . . . . . . . . . . . 1045 . . . 553 13073 . Kills 117 | . . . . . . . . 1 . . . . . . 8 17 15 2 3 16 . . . . . . . . . . . . . . . 10 . . . 3 42 . Allies Corrupted 1 | . . . . . . . . . . . . . . . . . . . . . . . . . . . . . . . . . . . . . . . . 1 . . Allies Melted 3 | . . . . . . . . . . . . . . . . 2 . . . . . . . . . . . . . . . . . . . . . . . . 1 . Intel | -11 -10 -10 -9 -9 -9 -8 -8 -8 -7 -7 -7 -7 -6 -6 -6 -6 -6 -6 -6 -6 -5 -5 -5 -5 -5 -5 -4 -4 -4 -4 -4 -4 -4 -3 -3 -3 -2 -2 -2 -1 -1 -1 ------- Run | Scr Mat Min Mat Min Exi Min Mat Sto Fac Low Low Dat Pro Fac Was Fac Ext Cet Arc Hub Fac Was Fac Upp Upp Zhi Pro Fac Was Fac Upp Upp War Pro Res Tes Res Qua Sec Acc Com Ac0 Robot Analysis Total 14 | . . . . . . . . . . . . . . . . . 3 . . . . . . . . 4 . . . . . . . . . 2 . 4 . 1 . . Derelict Logs Recovered 4 | . . . . 1 . . . . . 1 1 . . . . . . . . . . . . 1 . . . . . . . . . . . . . . . . . . Drone Launches 23 | . . . . . . . . 16 . . . . . . . 4 . . . . . . 3 . . . . . . . . . . . . . . . . . . . Drone Recoveries . | . . . . . . . . . . . . . . . . . . . . . . . . . . . . . . . . . . . . . . . . . . . Exploration | -11 -10 -10 -9 -9 -9 -8 -8 -8 -7 -7 -7 -7 -6 -6 -6 -6 -6 -6 -6 -6 -5 -5 -5 -5 -5 -5 -4 -4 -4 -4 -4 -4 -4 -3 -3 -3 -2 -2 -2 -1 -1 -1 ------------- Run | Scr Mat Min Mat Min Exi Min Mat Sto Fac Low Low Dat Pro Fac Was Fac Ext Cet Arc Hub Fac Was Fac Upp Upp Zhi Pro Fac Was Fac Upp Upp War Pro Res Tes Res Qua Sec Acc Com Ac0 Turns Passed 34008 | 88 143 53 776 796 508 58 838 1520 1050 473 353 260 1123 61 228 1497 803 243 2004 1083 966 114 3864 362 206 638 151 450 248 1880 230 183 666 285 761 1826 997 860 2079 455 1867 962 Spaces Moved 25467 | 55 84 32 364 450 310 22 493 677 585 355 234 124 550 56 202 1384 518 201 113 597 711 111 3034 337 225 257 138 374 167 1195 279 210 350 271 816 1509 1369 864 1876 513 2767 688 Core 11 | 11 . . . . . . . . . . . . . . . . . . . . . . . . . . . . . . . . . . . . . . . . . . Treads 2353 | 44 84 32 364 450 310 22 138 613 15 . . 21 . . . . . . . 188 72 . . . . . . . . . . . . . . . . . . . . . Legs 354 | . . . . . . . . . . . . 33 321 . . . . . . . . . . . . . . . . . . . . . . . . . . . . . Wheels 1330 | . . . . . . . . . 570 355 234 70 101 . . . . . . . . . . . . . . . . . . . . . . . . . . . . . Hover 21419 | . . . . . . . 355 64 . . . . 128 56 202 1384 518 201 113 409 639 111 3034 337 225 257 138 374 167 1195 279 210 350 271 816 1509 1369 864 1876 513 2767 688 Flight . | . . . . . . . . . . . . . . . . . . . . . . . . . . . . . . . . . . . . . . . . . . . Fastest Speed 44 | 50 160 160 160 160 160 160 48 132 120 130 130 120 68 68 68 68 68 68 68 68 68 68 68 68 68 68 68 68 68 68 68 68 60 60 52 45 48 48 48 44 44 44 Average Speed 74 | 138 160 160 160 160 160 160 103 147 123 130 130 140 113 75 68 68 70 68 68 103 82 68 69 68 68 68 68 68 68 68 68 68 69 60 62 66 52 48 53 44 44 44 Slowest Speed 290 | 160 160 160 160 160 160 160 160 180 165 130 130 250 150 138 68 68 142 68 68 180 180 68 290 68 68 72 68 68 68 68 68 68 125 60 125 125 148 48 148 44 152 44 Overloaded Moves 35 | . . . . . . . . . . . . . . . . . . . . . . . . . . . . . . . . . . . 15 20 . . . . . . Propulsion Burnouts . | . . . . . . . . . . . . . . . . . . . . . . . . . . . . . . . . . . . . . . . . . . . Robots Hopped . | . . . . . . . . . . . . . . . . . . . . . . . . . . . . . . . . . . . . . . . . . . . Cave-ins Triggered 5 | . . . . . . . . . . . . . . . . . 1 . . . . . 1 . . . . . . . . . . . . . . . . . . 3 Teleports 2 | . . . . . . . . . . . . . . . . . . . . . . . . . . . . . . . . . . . . . . . . . 1 1 Exploration Rate (%) 48 | 4 23 10 37 80 62 8 55 96 16 52 48 78 63 2 83 39 68 68 78 44 17 85 70 43 48 60 37 12 72 36 53 48 63 45 26 73 32 77 77 8 60 41 Regions Visited 42 Branch Regions 26 Pre-discovered Areas 7 | . . . . 1 . . . . . . . 1 . . . . . . . . . . . 1 1 3 . . . . . . . . . . . . . . . . Known Exits Taken 22 | . 1 . 1 . . . 1 . 1 . . . . . . 1 . . . 1 . . 1 1 1 1 1 . . 1 1 1 1 1 1 1 1 1 1 1 . . Unknown Exits Taken 14 | 1 . 1 . 1 1 1 . 1 . 1 1 1 1 . . . 1 1 1 . . . . . . . . . . . . . . . . . . . . . 1 . Scrap Searched 8 | . . . . 1 . . . . . 1 1 . . . . . . . . . . . . 4 . . . . . . . . . 1 . . . . . . . . Spaces Dug 404 | . . . . . . . 3 2 4 . 7 . 8 . 1 21 11 1 . 1 22 . 88 13 5 . 9 4 . 44 2 5 4 28 19 25 19 17 23 4 11 3 Terrain Destroyed 2347 | . . . . . . . 17 46 4 1 34 . 69 . 4 138 109 67 . 695 24 3 233 65 10 . 9 4 5 106 32 5 4 222 19 64 26 17 29 4 100 182 Melee 333 | . . . . . . . 1 2 4 . . . . . . 9 11 1 . 1 22 . 88 6 5 . 9 4 . 44 2 5 4 6 19 21 19 17 19 4 10 . Projectile 136 | . . . . . . . 3 . . 1 2 . 5 . 4 3 1 . . 41 . 3 5 2 . . . . 5 1 . . . . . 10 7 . 5 . 5 33 AOE 1878 | . . . . . . . 13 44 . . 32 . 64 . . 126 97 66 . 653 2 . 140 57 5 . . . . 61 30 . . 216 . 33 . . 5 . 85 149 Actions | -11 -10 -10 -9 -9 -9 -8 -8 -8 -7 -7 -7 -7 -6 -6 -6 -6 -6 -6 -6 -6 -5 -5 -5 -5 -5 -5 -4 -4 -4 -4 -4 -4 -4 -3 -3 -3 -2 -2 -2 -1 -1 -1 --------- Run | Scr Mat Min Mat Min Exi Min Mat Sto Fac Low Low Dat Pro Fac Was Fac Ext Cet Arc Hub Fac Was Fac Upp Upp Zhi Pro Fac Was Fac Upp Upp War Pro Res Tes Res Qua Sec Acc Com Ac0 Total 37934 | 64 87 34 489 496 324 45 712 1073 813 362 268 189 829 79 271 1845 910 276 2029 889 1048 134 4519 435 259 718 173 545 240 2091 308 240 766 356 992 2167 1583 1242 2816 713 3286 1219 Wait 8308 | . . 3 45 23 . 24 101 238 121 . 2 10 21 . 24 297 195 31 1904 102 249 3 1062 38 3 437 11 109 13 663 4 21 402 33 74 379 158 311 690 163 272 72 Move 25425 | 54 83 31 363 449 309 21 492 676 584 354 233 123 549 56 201 1383 516 200 112 596 711 110 3033 336 224 256 137 374 166 1194 278 209 349 270 815 1508 1368 863 1875 512 2766 686 Hop . | . . . . . . . . . . . . . . . . . . . . . . . . . . . . . . . . . . . . . . . . . . . Pick Up 367 | 4 1 . 17 2 3 . 13 7 10 4 9 9 20 3 9 22 7 5 1 9 7 2 34 5 2 4 1 6 2 19 4 1 3 5 7 26 4 6 29 3 17 25 Fast Attach 205 | 6 . . 7 . . . 7 12 2 1 1 5 7 3 . 5 4 2 . 11 3 . 23 . . 6 . 3 . 11 1 . 2 3 8 18 1 4 16 1 19 13 Attach 267 | . . . 1 . . . 6 3 3 . . 10 20 3 2 7 4 . . 4 12 . 25 7 3 1 3 8 2 14 2 . . 2 6 18 4 4 27 6 16 44 Detach 215 | . . . 3 . . . 3 3 2 . . 8 13 3 . 1 1 . . 13 7 . 26 6 3 3 2 7 . 10 2 . . 2 7 13 2 3 21 3 17 31 Swap 511 | . . . 6 4 6 . 6 14 7 . 3 3 15 1 1 18 10 17 1 5 16 3 82 14 9 1 2 5 3 40 . 2 2 5 9 52 8 11 41 4 42 43 Drop 418 | . . . 12 3 6 . 18 20 4 . 7 7 17 10 12 11 7 7 1 19 6 2 32 3 2 8 1 8 2 22 5 1 4 8 12 47 4 6 29 5 30 20 Fire 1164 | . 3 . 35 15 . . 60 17 31 1 13 13 133 . 22 26 9 9 1 83 4 14 52 14 7 . 5 18 36 37 10 . . 15 9 53 11 5 52 2 66 283 Melee 898 | . . . . . . . 6 75 49 2 . 1 17 . . 73 40 5 9 47 33 . 149 11 6 2 11 7 16 81 2 6 4 13 45 53 23 29 36 14 33 . Ram . | . . . . . . . . . . . . . . . . . . . . . . . . . . . . . . . . . . . . . . . . . . . Kick . | . . . . . . . . . . . . . . . . . . . . . . . . . . . . . . . . . . . . . . . . . . . Crush . | . . . . . . . . . . . . . . . . . . . . . . . . . . . . . . . . . . . . . . . . . . . Escape Stasis 46 | . . . . . . . . . . . . . . . . . 40 . . . . . . . . . . . . . . . . . . . . . . . 4 2 Rewire 98 | . . . . . . . . . . . . . 17 . . . 77 . . . . . . . . . . . . . . . . . . . . . . . 4 . Trap 1 | . . . . . . . . . . . . . . . . . . . . . . . . 1 . . . . . . . . . . . . . . . . . . Miscellaneous 11 | . . . . . . . . 8 . . . . . . . 2 . . . . . . 1 . . . . . . . . . . . . . . . . . . . Route ------- -11/Scrapyard -10/Materials (discovered 2 exits: *Min x2) -10/Mines -9/Materials (discovered 3 exits: *Mat / *Min x2) -9/Mines (discovered 3 exits: *Mat x2 / *Exi) -9/Exiles -8/Mines -8/Materials (discovered 2 exits: *Sto x2) -8/Storage -7/Factory (discovered 2 exits: *Low x2) -7/Lower Caves -7/Lower Caves -7/Data Miner -6/Proximity Caves -6/Factory -6/Waste -6/Factory (discovered 6 exits: *Fac x2 / Low x2 / *Ext x2) -6/Extension (discovered 2 exits: *Fac / *Cet) -6/Cetus (discovered 2 exits: *Fac / [*Arc]) -6/Archives (discovered 2 exits: *Fac / *Hub) -6/Hub_04(d) (discovered 2 exits: *Fac x2) -5/Factory (discovered 3 exits: *Fac / Upp x2) -5/Waste -5/Factory (discovered 6 exits: *Fac x4 / *Upp x2) -5/Upper Caves -5/Upper Caves (discovered 2 exits: Fac / *Zhi) -5/Zhirov -4/Proximity Caves -4/Factory (discovered 2 exits: Upp x2) -4/Waste -4/Factory (discovered 3 exits: *Res / *Upp x2) -4/Upper Caves -4/Upper Caves (discovered 2 exits: Res / *War) -4/Warlord -3/Proximity Caves -3/Research (discovered 4 exits: Res / Arm / *Tes x2) -3/Testing -2/Research (discovered 4 exits: *Acc x2 / *Qua x2) -2/Quarantine (discovered 2 exits: *Acc / *Sec) -2/Section 7 -1/Access (discovered 2 exits: Sur / *Com) -1/Command (discovered 3 exits: *Sur x2 / [*Ac0]) -1/Access_0 (discovered 1 exit: *Sur) History --------- Turn | Location | Event 8 | -11/Scrapyard | Discovered new exit (range 15) 89 | -11/Scrapyard | Entered Materials 136 | -10/Materials | Discovered new exit (range 15) 158 | -10/Materials | Identified exit to Mines 232 | -10/Materials | Entered Mines 269 | -10/Mines | Discovered new exit (range 7) 285 | -10/Mines | Entered Materials 285 | -9/Materials | Evolved 2 slots: Utility x2 318 | -9/Materials | Build established: Mutant 887 | -9/Materials | Discovered new exit (range 15) 944 | -9/Materials | Identified exit to Mines 1033 | -9/Materials | Build established: Scavenger-Mutant 1061 | -9/Materials | Entered Mines 1089 | -9/Mines | Met a Derelict bent on vengeance 1124 | -9/Mines | Found a damaged Exp. Sensor Array with a note attached 1131 | -9/Mines | Found Prototype Device 1436 | -9/Mines | Learned location of Storage (-8) 1460 | -9/Mines | Discovered new exit (range 13) 1467 | -9/Mines | Received a Rocket Launcher from a helpful Derelict 1501 | -9/Mines | Discovered new exit (range 9) 1849 | -9/Mines | Deemed a non-threat by the Exiles lab entrance 1850 | -9/Mines | Discovered new exit (range 5) 1857 | -9/Mines | Entered Exiles 1897 | -9/Exiles | Met 8R-AWN 1923 | -9/Exiles | Met EX-HEX 1968 | -9/Exiles | Met EX-BIN 1990 | -9/Exiles | Aligned with FarCom system 1992 | -9/Exiles | Given EX-Vault access code 2035 | -9/Exiles | Opened EX-Vault 2060 | -9/Exiles | Found Firepult 2072 | -9/Exiles | Found Longsword +1 2077 | -9/Exiles | Found Cloak of Protection 2113 | -9/Exiles | Warned to stay clear of 0b10 Research branches 2248 | -9/Exiles | Met EX-DEC 2345 | -9/Exiles | Discovered new exit (range 10) 2365 | -9/Exiles | Stole three prototypes: Cloak of Protection, Firepult, Longsword +1 2365 | -9/Exiles | Entered Mines 2407 | -8/Mines | Discovered new exit (range 11) 2423 | -8/Mines | Entered Materials 2423 | -8/Materials | Evolved 2 slots: Propulsion x2 2650 | -8/Materials | Discovered new exit (range 15) 2754 | -8/Materials | Identified exit to Storage 3023 | -8/Materials | Build established: Mutant 3031 | -8/Materials | Lost 3 parts (1n2w) 3261 | -8/Materials | Entered Storage 3329 | -8/Storage | Build established: Scavenger-Mutant 4037 | -8/Storage | Discovered new exit (range 10) 4122 | -8/Storage | Identified Exp. Sensor Array 4160 | -8/Storage | Repaired Flak Cannon 4200 | -8/Storage | Build established: Mutant 4242 | -8/Storage | Repaired Exp. Sensor Array? 4457 | -8/Storage | Met a pair of Derelict thieves 4533 | -8/Storage | Core integrity fell below 50% 4563 | -8/Storage | Destroyed 7 combat bots 4781 | -8/Storage | Entered Factory 4781 | -7/Factory | Evolved 2 slots: Utility x2 4783 | -7/Factory | FarCom data flow suspended 5087 | -7/Factory | Build established: Hauler-Mutant 5199 | -7/Factory | Identified exit to Lower Caves 5234 | -7/Factory | Garrison activated, responded to threat 5831 | -7/Factory | Entered Lower Caves 5948 | -7/Lower Caves | Attacked by a delusional Derelict stockpiling parts 6274 | -7/Lower Caves | Learned Factory trap positions 6287 | -7/Lower Caves | Discovered new exit (range 10) 6304 | -7/Lower Caves | Entered another Lower Caves area 6507 | -7/Lower Caves | Spotted 4Z-Y42(f) 6508 | -7/Lower Caves | Encountered a Master Thief 6509 | -7/Lower Caves | Exp. Sensor Array stolen by Master Thief 6540 | -7/Lower Caves | Spotted 43-3TI(f) 6541 | -7/Lower Caves | Encountered a Master Thief 6545 | -7/Lower Caves | Gui. EMP Blaster stolen by Master Thief 6650 | -7/Lower Caves | Discovered new exit (range 6) 6657 | -7/Lower Caves | Entered Data Miner 6658 | -7/Data Miner | Discovered new exit (range 6) 6683 | -7/Data Miner | Met Data Miner 6720 | -7/Data Miner | Learned location of Section 7 (-2) 6720 | -7/Data Miner | Acquired the access code to Warlord's prototype stash 6731 | -7/Data Miner | Received God Mode back door access code from Data Miner 6764 | -7/Data Miner | Data Conduit disabled 6814 | -7/Data Miner | Lost 3 parts (1p1n1u) 6877 | -7/Data Miner | Found Prototype Device 6917 | -7/Data Miner | Entered Proximity Caves 7026 | -6/Proximity Caves | Spotted B-75 Beast 7073 | -6/Proximity Caves | Core integrity fell below 50% 7124 | -6/Proximity Caves | Destroyed B-75 Beast 7146 | -6/Proximity Caves | Lost 3 parts (1u2w) 7204 | -6/Proximity Caves | Attracted the attention of an 0b10 checkpoint 7456 | -6/Proximity Caves | Discovered new exit (range 10) 8006 | -6/Proximity Caves | Lost 3 parts (1p1u1w) 8040 | -6/Proximity Caves | Entered Factory 8040 | -6/Factory | Evolved 2 slots: Utility x2 8041 | -6/Factory | Identified exit to Extension 8042 | -6/Factory | Loaded intel: 103 trap records 8070 | -6/Factory | Identified Exp. Thermal Shield 8072 | -6/Factory | Found Prototype Launcher 8072 | -6/Factory | Identified Scatter Rocket Array 8076 | -6/Factory | Found Scatter Rocket Array 8101 | -6/Factory | Manually triggered Chute Trap 8101 | -6/Factory | Sucked down chute 8101 | -6/Factory | Entered Waste 8114 | -6/Waste | Warlord forces began an assault 8184 | -6/Waste | Spotted C-40 Crusher 8203 | -6/Waste | Allies destroyed C-40 Crusher 8208 | -6/Waste | Spotted C-40 Crusher 8220 | -6/Waste | Allies destroyed C-40 Crusher 8241 | -6/Waste | Spotted C-40 Crusher 8243 | -6/Waste | Spotted C-40 Crusher 8252 | -6/Waste | Build established: Scavenger-Mutant 8255 | -6/Waste | Allies destroyed C-40 Crusher 8258 | -6/Waste | Found Damper Plating 8259 | -6/Waste | Spotted C-40 Crusher 8265 | -6/Waste | Allies destroyed C-40 Crusher 8266 | -6/Waste | Destroyed C-40 Crusher 8277 | -6/Waste | Found Damper Plating 8289 | -6/Waste | Discovered new exit (range 16) 8329 | -6/Waste | Entered Factory 8329 | -6/Factory | Accompanied by 13 allies 8440 | -6/Factory | Discovered new exit (range 15) 8474 | -6/Factory | Identified exit to Factory 8545 | -6/Factory | Identified exit to Lower Caves 8600 | -6/Factory | Repaired Cmb. Antigrav System 8644 | -6/Factory | Repaired Adv. Transmission Jammer 8712 | -6/Factory | Spotted B-75 Beast 8736 | -6/Factory | Allies destroyed B-75 Beast 9029 | -6/Factory | First assault squad dispatched 9194 | -6/Factory | Discovered exit to Factory (range 15) 9276 | -6/Factory | Garrison activated, responded to threat 9383 | -6/Factory | Destroyed 10 combat bots 9487 | -6/Factory | Fabricated Exp. Sensor Array? 9496 | -6/Factory | Lost 3 parts (1p2u) 9596 | -6/Factory | Fabricated Exp. Terrain Scanner? 9618 | -6/Factory | Local fabrication network quarantined 9756 | -6/Factory | Fabricated Exp. Sensor Array (x1) 9826 | -6/Factory | Entered Extension 9852 | -6/Extension | Disrupted transfer network 10136 | -6/Extension | Repaired Cmb. Airjet 10176 | -6/Extension | First assault squad dispatched 10187 | -6/Extension | Repaired Cmb. Airjet 10239 | -6/Extension | Repaired Cmb. Airjet 10277 | -6/Extension | P-60 Hacker assimilated allied FW-PKX(b) 10286 | -6/Extension | Repaired Microactuators 10364 | -6/Extension | Crushed by falling debris 10482 | -6/Extension | Rescued a captive Derelict 10484 | -6/Extension | Rescued a captive Derelict 10493 | -6/Extension | Rescued a captive Derelict 10495 | -6/Extension | Rescued a captive Derelict 10512 | -6/Extension | Rescued A7 10585 | -6/Extension | Discovered exit to Factory (range 10) 10586 | -6/Extension | Discovered new exit (range 6) 10629 | -6/Extension | Entered Cetus 10629 | -6/Cetus | Accompanied by 7 allies 10634 | -6/Cetus | Acquired a Cetus Manufacturing Module code from A7 10645 | -6/Cetus | Spotted Cetus Guard 10645 | -6/Cetus | Spotted Cetus Guard 10649 | -6/Cetus | Destroyed Cetus Guard 10649 | -6/Cetus | Spotted Cetus Guard 10651 | -6/Cetus | Destroyed Cetus Guard 10652 | -6/Cetus | Destroyed Cetus Guard 10653 | -6/Cetus | Destroyed Cetus Guard 10701 | -6/Cetus | Started Cetus Manufacturing Module 10726 | -6/Cetus | Manufactured an Enhanced Grunt 10751 | -6/Cetus | Manufactured an Enhanced Grunt 10754 | -6/Cetus | Escorted A7 to Cetus Mainframe 10765 | -6/Cetus | Discovered new exit (range 16) 10776 | -6/Cetus | Manufactured an Enhanced Grunt 10796 | -6/Cetus | Spotted Cetus Guard 10796 | -6/Cetus | Spotted Cetus Guard 10800 | -6/Cetus | Spotted Cetus Guard 10801 | -6/Cetus | Manufactured an Enhanced Grunt 10803 | -6/Cetus | Destroyed Cetus Guard 10804 | -6/Cetus | Spotted Cetus Guard 10805 | -6/Cetus | Destroyed Cetus Guard 10807 | -6/Cetus | Destroyed Cetus Guard 10807 | -6/Cetus | Cetus Manufacturing Module disabled 10808 | -6/Cetus | Destroyed Cetus Guard 10823 | -6/Cetus | Discovered exit to Factory (range 15) 10827 | -6/Cetus | Met Revision 17 10872 | -6/Cetus | Entered Archives 10872 | -6/Archives | Accompanied by 8 allies 10877 | -6/Archives | Received a hacking code to weaken MAIN.C 10901 | -6/Archives | Discovered new exit (range 15) 10944 | -6/Archives | Discovered exit to Factory (range 15) 12876 | -6/Archives | Entered Hub_04(d) 12876 | -6/Hub_04(d) | Accompanied by 7 allies 12880 | -6/Hub_04(d) | Discovered exit to Factory (range 16) 13022 | -6/Hub_04(d) | Discovered exit to Factory (range 10) 13226 | -6/Hub_04(d) | First assault squad dispatched 13317 | -6/Hub_04(d) | Core integrity fell below 50% 13370 | -6/Hub_04(d) | Disrupted transfer network 13498 | -6/Hub_04(d) | Network Hub disabled 13505 | -6/Hub_04(d) | Network Hub disabled 13575 | -6/Hub_04(d) | Spotted Lightning 13578 | -6/Hub_04(d) | Spotted Lightning 13580 | -6/Hub_04(d) | Destroyed Lightning 13583 | -6/Hub_04(d) | Destroyed Lightning 13589 | -6/Hub_04(d) | Spotted Lightning 13589 | -6/Hub_04(d) | Spotted Lightning 13589 | -6/Hub_04(d) | Spotted Lightning 13598 | -6/Hub_04(d) | Destroyed Lightning 13607 | -6/Hub_04(d) | Destroyed Lightning 13610 | -6/Hub_04(d) | Destroyed Lightning 13623 | -6/Hub_04(d) | Spotted Lightning 13651 | -6/Hub_04(d) | Destroyed Lightning 13661 | -6/Hub_04(d) | Found Prototype Device 13661 | -6/Hub_04(d) | Identified Exp. Phase Shifter 13690 | -6/Hub_04(d) | Found Prototype Device 13690 | -6/Hub_04(d) | Identified EM Dispersion Field 13696 | -6/Hub_04(d) | Found Exp. Phase Shifter 13708 | -6/Hub_04(d) | Found Prototype Energy Cannon 13713 | -6/Hub_04(d) | Found Exp. Targeting Computer 13787 | -6/Hub_04(d) | Network Hub disabled 13792 | -6/Hub_04(d) | Network Hub disabled 13794 | -6/Hub_04(d) | Spotted Lightning 13801 | -6/Hub_04(d) | Spotted Lightning 13801 | -6/Hub_04(d) | Spotted Lightning 13801 | -6/Hub_04(d) | Spotted Lightning 13806 | -6/Hub_04(d) | Spotted Lightning 13816 | -6/Hub_04(d) | Spotted Lightning 13825 | -6/Hub_04(d) | Destroyed Lightning 13840 | -6/Hub_04(d) | Destroyed Lightning 13848 | -6/Hub_04(d) | Destroyed Lightning 13851 | -6/Hub_04(d) | Destroyed Lightning 13886 | -6/Hub_04(d) | Destroyed Lightning 13889 | -6/Hub_04(d) | Destroyed Lightning 13932 | -6/Hub_04(d) | High security lockdown imminent 13959 | -6/Hub_04(d) | Entered Factory 13959 | -5/Factory | Evolved 2 slots: Utility x2 14153 | -5/Factory | Identified EMDS 14259 | -5/Factory | First assault squad dispatched 14292 | -5/Factory | Repaired Cmb. Antigrav System 14348 | -5/Factory | Repaired Cmb. Airjet 14475 | -5/Factory | Discovered new exit (range 30) 14640 | -5/Factory | Identified exit to Upper Caves 14657 | -5/Factory | Discovered new exit (range 5) 14659 | -5/Factory | Identified exit to Factory 14734 | -5/Factory | Fabricated Cmb. Antigrav System (x2) 14757 | -5/Factory | Build established: Scavenger-Scout 14925 | -5/Factory | Sucked down chute 14925 | -5/Factory | Entered Waste 14940 | -5/Waste | EMP discharged 14944 | -5/Waste | Spotted C-40 Crusher 14959 | -5/Waste | Spotted C-40 Crusher 14970 | -5/Waste | Destroyed C-40 Crusher 14998 | -5/Waste | Spotted C-40 Crusher 15007 | -5/Waste | Spotted C-40 Crusher 15012 | -5/Waste | Spotted C-40 Crusher 15014 | -5/Waste | Spotted C-40 Crusher 15032 | -5/Waste | Discovered new exit (range 11) 15038 | -5/Waste | Identified exit to Factory 15039 | -5/Waste | Entered Factory 15094 | -5/Factory | Repaired Lrg. Storage Unit 15123 | -5/Factory | Repaired Lrg. Storage Unit 15138 | -5/Factory | Repaired Lrg. Storage Unit 15159 | -5/Factory | Repaired Lrg. Storage Unit 15998 | -5/Factory | Central database locked down 16110 | -5/Factory | Repaired Centrium Heavy Treads? 16142 | -5/Factory | Fabricated Exp. Signal Interpreter? 16181 | -5/Factory | Build established: Hauler-Mutant 16327 | -5/Factory | Fabricated Exp. Utility Shielding (x1) 17285 | -5/Factory | Fabricated Exp. Propulsion Shielding (x1) 17552 | -5/Factory | Repaired Cmb. Antigrav System 17572 | -5/Factory | Repaired Imp. Weapon Shielding 17623 | -5/Factory | Repaired Exp. Sensor Array 17667 | -5/Factory | Repaired Exp. Utility Shielding 17798 | -5/Factory | Repaired Cmb. Antigrav System? 17873 | -5/Factory | Repaired Scatter Rocket Array 18339 | -5/Factory | First assault squad dispatched 18389 | -5/Factory | Fabricated Exp. Terrain Scan Processor (x1) 18473 | -5/Factory | Crushed by falling debris 18847 | -5/Factory | Fabricated Exp. Terrain Scan Processor (x1) 18855 | -5/Factory | Local fabrication network quarantined 18903 | -5/Factory | Entered Upper Caves 18903 | -5/Upper Caves | Accompanied by 1 ally 18987 | -5/Upper Caves | Spotted 37-GD7(f) 18989 | -5/Upper Caves | Encountered a Master Thief 18991 | -5/Upper Caves | Spotted QE-RGS(f) 18992 | -5/Upper Caves | Encountered a Master Thief 18993 | -5/Upper Caves | Cloak of Protection stolen by Master Thief 18994 | -5/Upper Caves | Exp. Phase Shifter stolen by Master Thief 19081 | -5/Upper Caves | Encountered a Warlord checkpoint 19194 | -5/Upper Caves | Build established: Mechanic-Scout 19196 | -5/Upper Caves | Discovered new exit (range 10) 19203 | -5/Upper Caves | Identified exit to Upper Caves 19214 | -5/Upper Caves | Learned location of Armory (-3) 19232 | -5/Upper Caves | Spotted DP-N3L(f) 19233 | -5/Upper Caves | Encountered a Master Thief 19236 | -5/Upper Caves | Exp. Phase Shifter stolen by Master Thief 19265 | -5/Upper Caves | Entered another Upper Caves area 19283 | -5/Upper Caves | Discovered exit to Factory (range 24) 19365 | -5/Upper Caves | Attracted the attention of an 0b10 checkpoint 19435 | -5/Upper Caves | Discovered new exit (range 28) 19453 | -5/Upper Caves | Identified exit to Zhirov 19467 | -5/Upper Caves | Learned Armory trap positions 19467 | -5/Upper Caves | Learned Armory emergency access door positions 19467 | -5/Upper Caves | Learned Factory stockpile data 19467 | -5/Upper Caves | Learned Research garrison access intel 19471 | -5/Upper Caves | Entered Zhirov 19472 | -5/Zhirov | Discovered new exit (range 3) 19484 | -5/Zhirov | Met Zhirov 19500 | -5/Zhirov | Learned location of Quarantine (-2) 19500 | -5/Zhirov | Learned location of Testing (-3) 19500 | -5/Zhirov | Learned location of Command (-1) 19503 | -5/Zhirov | Zhirov requested help retrieving the SGEMP Prototype 19515 | -5/Zhirov | Found Alien Artifact 19515 | -5/Zhirov | Identified Integrated Dissipator 19515 | -5/Zhirov | Installed Integrated Dissipator, increased core heat dissipation (+2%) 19524 | -5/Zhirov | Found Alien Artifact 19822 | -5/Zhirov | Build established: Mechanic-Mutant 20108 | -5/Zhirov | Identified exit to Proximity Caves 20109 | -5/Zhirov | Entered Proximity Caves 20229 | -4/Proximity Caves | Discovered exit to Factory (range 28) 20260 | -4/Proximity Caves | Entered Factory 20260 | -4/Factory | Evolved 2 slots: Utility x2 20358 | -4/Factory | Local fabrication network quarantined 20360 | -4/Factory | Fabricated Exp. Sensor Array (x1) 20513 | -4/Factory | Repaired Centrium Medium Armor Plating 20545 | -4/Factory | Identified exit to Upper Caves 20616 | -4/Factory | Found Quantum Capacitor 20710 | -4/Factory | Manually triggered Chute Trap 20710 | -4/Factory | Sucked down chute 20710 | -4/Factory | Entered Waste 20725 | -4/Waste | EMP discharged 20747 | -4/Waste | Spotted C-40 Crusher 20798 | -4/Waste | Spotted C-40 Crusher 20798 | -4/Waste | Spotted C-40 Crusher 20808 | -4/Waste | Destroyed C-40 Crusher 20820 | -4/Waste | Spotted C-40 Crusher 20825 | -4/Waste | EMP discharged 20885 | -4/Waste | Spotted C-40 Crusher 20917 | -4/Waste | Discovered new exit (range 11) 20925 | -4/Waste | EMP discharged 20930 | -4/Waste | Identified exit to Factory 20958 | -4/Waste | Entered Factory 21032 | -4/Factory | Build established: Hacker-Mutant 21051 | -4/Factory | Repaired Exp. Propulsion Shielding 21087 | -4/Factory | Repaired Cmb. Antigrav System 21169 | -4/Factory | Repaired Cmb. Antigrav System 21438 | -4/Factory | Central database locked down 21450 | -4/Factory | Identified Transdimensional Reconstructor 21464 | -4/Factory | Discovered new exit (range 15) 21480 | -4/Factory | Identified exit to Research 21715 | -4/Factory | Fabricated Exp. Utility Shielding (x1) 21752 | -4/Factory | Build established: Hacker-Scout 21806 | -4/Factory | Fabricated Mni. Smartbomb Launcher (x1) 21851 | -4/Factory | Fabricated Imp. Powered Armor (x1) 21877 | -4/Factory | Spotted B-86 Titan 22097 | -4/Factory | Destroyed 7 combat bots 22180 | -4/Factory | Build established: Mechanic-Mutant 22223 | -4/Factory | Repaired Exp. Propulsion Shielding? 22526 | -4/Factory | Repaired Imp. Fusion Compressor? 22595 | -4/Factory | Fabricated Exp. Utility Shielding (x1) 22681 | -4/Factory | Repaired Exp. Utility Shielding 22702 | -4/Factory | Build established: Mechanic-Scout 22838 | -4/Factory | Entered Upper Caves 22838 | -4/Upper Caves | Accompanied by 2 allies 23035 | -4/Upper Caves | Discovered new exit (range 30) 23066 | -4/Upper Caves | Identified exit to Upper Caves 23068 | -4/Upper Caves | Entered another Upper Caves area 23068 | -4/Upper Caves | Accompanied by 2 allies 23075 | -4/Upper Caves | Discovered exit to Research (range 27) 23164 | -4/Upper Caves | Attracted the attention of an 0b10 base 23164 | -4/Upper Caves | Learned Research terminal intel 23164 | -4/Upper Caves | Learned Armory terminal intel 23164 | -4/Upper Caves | Learned Extension garrison access intel 23231 | -4/Upper Caves | Discovered new exit (range 29) 23248 | -4/Upper Caves | Identified exit to Warlord 23251 | -4/Upper Caves | Entered Warlord 23251 | -4/Warlord | Accompanied by 1 ally 23263 | -4/Warlord | Discovered new exit (range 21) 23314 | -4/Warlord | Met Warlord 23320 | -4/Warlord | Opened Warlord's prototype stash 23332 | -4/Warlord | Found Prototype Processor 23334 | -4/Warlord | Found Prototype Device 23339 | -4/Warlord | Warlord's base attacked by MAIN.C 23394 | -4/Warlord | Found Prototype Energy Cannon 23583 | -4/Warlord | Build established: Mechanic-Mutant 23689 | -4/Warlord | Warlord forces counterattacked 23705 | -4/Warlord | Opened side exit 23765 | -4/Warlord | Identified exit to Proximity Caves 23917 | -4/Warlord | Entered Proximity Caves 23917 | -3/Proximity Caves | Accompanied by 1 ally 23980 | -3/Proximity Caves | Found Imp. Powered Armor 24032 | -3/Proximity Caves | Spotted HG-BS7(f) 24034 | -3/Proximity Caves | Encountered a Master Thief 24040 | -3/Proximity Caves | Firepult stolen by Master Thief 24202 | -3/Proximity Caves | Entered Research 24202 | -3/Research | Evolved 2 slots: Utility x2 24203 | -3/Research | Loaded intel: 16 terminal locations 24204 | -3/Research | Loaded intel: 4 garrison access locations 24240 | -3/Research | Found Prototype Processor 24265 | -3/Research | Identified Exp. Armor Integrity Analyzer 24265 | -3/Research | Identified Spectral Analyzer 24265 | -3/Research | Identified System Purifier 24265 | -3/Research | Identified Vortex Driver 24327 | -3/Research | Build established: Mechanic-Scout 24432 | -3/Research | Identified exit to Armory 24432 | -3/Research | Identified exit to Testing 24476 | -3/Research | Discovered new exit (range 26) 24519 | -3/Research | Found Prototype Launcher 24519 | -3/Research | Identified Adv. Micro-nuke Launcher 24842 | -3/Research | Found Enh. Force Lance 24963 | -3/Research | Entered Testing 25032 | -3/Testing | Found Portable AFG 25059 | -3/Testing | Found Prototype Ballistic Cannon 25085 | -3/Testing | Found Prototype Launcher 25085 | -3/Testing | Identified Tactical Quantum Warhead 25123 | -3/Testing | Identified exit to Research 25135 | -3/Testing | Spotted Striker 25234 | -3/Testing | Repaired Exp. Utility Shielding 25313 | -3/Testing | Stole the SGEMP Prototype 25337 | -3/Testing | Found Prototype Energy Cannon 25338 | -3/Testing | Identified Null Cannon 25355 | -3/Testing | Found Prototype Energy Cannon 25462 | -3/Testing | Found Prototype Energy Cannon 25462 | -3/Testing | Identified Disintegrator 25604 | -3/Testing | Spotted PH-ZYHJLPZD7I 25607 | -3/Testing | Rewired PH-ZYHJLPZD7I 25621 | -3/Testing | Identified Omega Cannon 25963 | -3/Testing | Found Prototype Protection 26296 | -3/Testing | Found Prototype Energy Cannon 26296 | -3/Testing | Identified Cld. Nova Cannon 26322 | -3/Testing | Found Prototype Energy Gun 26322 | -3/Testing | Identified Warp Gun 26413 | -3/Testing | Build established: Hacker-Mutant 26463 | -3/Testing | First assault squad dispatched 26607 | -3/Testing | Fabricated Cmb. Linear Gravjet (x2) 26657 | -3/Testing | Fabricated Cmb. Linear Gravjet (x2) 26667 | -3/Testing | Local fabrication network quarantined 26789 | -3/Testing | Entered Research 26789 | -2/Research | Warlord forces began assault on 0b10 26789 | -2/Research | Evolved 2 slots: Utility x2 26813 | -2/Research | Identified exit to Quarantine 26899 | -2/Research | Research machine network offline 27016 | -2/Research | Discovered new exit (range 26) 27071 | -2/Research | Found Prototype Hackware 27122 | -2/Research | Borebot progress halted 27127 | -2/Research | Borebot progress halted 27154 | -2/Research | Discovered new exit (range 27) 27473 | -2/Research | Met up with Warlord 27477 | -2/Research | Build established: Mechanic-Scout 27689 | -2/Research | Spotted Striker 27731 | -2/Research | Spotted Executioner 27742 | -2/Research | Found Prototype Processor 27786 | -2/Research | Entered Quarantine 27792 | -2/Quarantine | Identified Exp. Hacking Suite 27865 | -2/Quarantine | Garrison activated, responded to threat 27970 | -2/Quarantine | Discovered new exit (range 30) 28021 | -2/Quarantine | Identified exit to Access 28032 | -2/Quarantine | Found Alien Artifact 28068 | -2/Quarantine | Identified Subatomic Replicator 28068 | -2/Quarantine | Identified Exp. Core Analyzer 28068 | -2/Quarantine | Identified Imp. Potential Cannon 28068 | -2/Quarantine | Identified SHELL Armor 28154 | -2/Quarantine | Repaired Exp. Utility Shielding 28194 | -2/Quarantine | Repaired Exp. Weapon Shielding 28215 | -2/Quarantine | Build established: Mechanic-Ninja 28236 | -2/Quarantine | Repaired Exp. Propulsion Shielding 28281 | -2/Quarantine | Repaired Mni. Smartbomb Launcher 28310 | -2/Quarantine | Repaired Imp. Plasma Cutter 28397 | -2/Quarantine | Found Alien Impact Weapon 28550 | -2/Quarantine | Spotted Fortress 28580 | -2/Quarantine | Discovered new exit (range 14) 28586 | -2/Quarantine | Identified exit to Section 7 28646 | -2/Quarantine | Entered Section 7 28784 | -2/Section 7 | Discovered exit to Access (range 23) 28906 | -2/Section 7 | Found Integrated Dissipator 28906 | -2/Section 7 | Installed Integrated Dissipator, increased core heat dissipation (+2%) 29013 | -2/Section 7 | Repaired Exp. Utility Shielding 29054 | -2/Section 7 | Repaired Exp. Propulsion Shielding 29095 | -2/Section 7 | Repaired Exp. Weapon Shielding 29164 | -2/Section 7 | Repaired Cld. Antimatter Reactor 29183 | -2/Section 7 | Found Exp. Hacking Suite 29185 | -2/Section 7 | Found Prototype Device 29185 | -2/Section 7 | Identified Exp. Focal Shield 29214 | -2/Section 7 | Found Alien Artifact 29226 | -2/Section 7 | Found Alien Artifact 29294 | -2/Section 7 | Identified Integrity Redistributor (x2) 29379 | -2/Section 7 | Found Alien Artifact 29415 | -2/Section 7 | Identified Core Regenerator 29490 | -2/Section 7 | Spotted S7 Guard 29586 | -2/Section 7 | Found Alien Artifact 29680 | -2/Section 7 | Identified Core Membrane 29681 | -2/Section 7 | Installed Core Membrane, gained immunity to corruption 29711 | -2/Section 7 | Found Integrity Redistributor 29955 | -2/Section 7 | Spotted S7 Guard 29991 | -2/Section 7 | Destroyed S7 Guard 30052 | -2/Section 7 | Build established: Hacker-Mutant 30070 | -2/Section 7 | Repaired Exp. Utility Shielding 30111 | -2/Section 7 | Repaired Exp. Propulsion Shielding 30152 | -2/Section 7 | Repaired Exp. Weapon Shielding 30207 | -2/Section 7 | Repaired Exp. Energy Well 30248 | -2/Section 7 | Repaired Exp. Weapon Shielding 30333 | -2/Section 7 | Found Alien Artifact 30594 | -2/Section 7 | Spotted B-99 Colossus 30624 | -2/Section 7 | Used Subatomic Replicator to replicate Alien Artifact 30627 | -2/Section 7 | Found Alien Artifact 30627 | -2/Section 7 | Identified LRC Armor 30627 | -2/Section 7 | Installed LRC Armor, increased core integrity (+250) 30629 | -2/Section 7 | Installed LRC Armor, increased core integrity (+250) 30654 | -2/Section 7 | Found Integrated Dissipator 30654 | -2/Section 7 | Installed Integrated Dissipator, increased core heat dissipation (+2%) 30656 | -2/Section 7 | Found Integrated Dissipator 30656 | -2/Section 7 | Installed Integrated Dissipator, increased core heat dissipation (+2%) 30725 | -2/Section 7 | Entered Access 30725 | -1/Access | Evolved 2 slots: Propulsion x1, Utility x1 30726 | -1/Access | Loaded intel: 102 machine locations 30726 | -1/Access | Loaded intel: 90 trap records 30726 | -1/Access | Identified exit to Surface 30726 | -1/Access | Discovered exit to Surface (range 104) 30726 | -1/Access | Identified exit to Command 30726 | -1/Access | Discovered exit to Command (range 91) 30726 | -1/Access | Delivered the SGEMP Prototype to Zhirov 30726 | -1/Access | Zhirov transferred Access data 30907 | -1/Access | Zhirov warped through subspace 30922 | -1/Access | Build established: Hacker-Scout 30996 | -1/Access | Fabricated Exp. Weapon Cycler (x1) 31051 | -1/Access | Fabricated Exp. Phase Shifter (x1) 31180 | -1/Access | Entered Command 31220 | -1/Command | Disengaged cave seal 31220 | -1/Command | Derelicts emerged from the dark tunnel 31235 | -1/Command | Phase Generator disabled 31472 | -1/Command | Discovered exit to Surface (range 27) 31569 | -1/Command | Disengaged cave seal 31634 | -1/Command | Spotted B-99 Colossus 31653 | -1/Command | Allies destroyed B-99 Colossus 31754 | -1/Command | Spotted M Guard 31754 | -1/Command | Destroyed Combat Programmer 31761 | -1/Command | Spotted M Guard 31761 | -1/Command | Spotted Combat Programmer 31765 | -1/Command | Destroyed Combat Programmer 31776 | -1/Command | Allies destroyed M Guard 31776 | -1/Command | Destroyed all MAIN.C guards 31816 | -1/Command | Repaired Exp. Utility Shielding 31844 | -1/Command | Repaired Exp. Propulsion Shielding 31868 | -1/Command | Found Zero-point Reactor 31870 | -1/Command | Found Prototype Launcher 31870 | -1/Command | Identified Ragnarok Missile Launcher 31972 | -1/Command | First assault squad dispatched 32118 | -1/Command | Met MAIN.C 32118 | -1/Command | 0b10 Conduit disabled 32130 | -1/Command | Build established: Mechanic-Mutant 32139 | -1/Command | Destroyed MAIN.C Shell 32141 | -1/Command | MAIN.C activated Command garrisons 32146 | -1/Command | Zhirov used SGEMP to disable MAIN.C 32221 | -1/Command | Found Prototype Protection 32221 | -1/Command | Identified Exp. Powered Armor 32227 | -1/Command | Found Unknown Device 32227 | -1/Command | Identified Antimissile System 32236 | -1/Command | Found Prototype Device 32236 | -1/Command | Identified Beam Splitter 32255 | -1/Command | Found Exp. Powered Armor 32344 | -1/Command | Found Prototype Processor 32344 | -1/Command | Identified Exp. Target Analyzer 32389 | -1/Command | Found Prototype Device 32389 | -1/Command | Identified Adv. Kinecellerator 32633 | -1/Command | Used Integrity Redistributor, redistributed integrity from core (-67) 32634 | -1/Command | Used Core Regenerator, restored core integrity (+321) 33010 | -1/Command | Warped through subspace to slip node 33010 | -1/Command | Discovered new exit (range 5) 33047 | -1/Command | Entered Access_0 33048 | -1/Access_0 | Met Architect 33052 | -1/Access_0 | Architect warped through subspace 33059 | -1/Access_0 | Destroyed A8 33111 | -1/Access_0 | Architect warped through subspace 33156 | -1/Access_0 | Found Alien Artifact 33156 | -1/Access_0 | Identified Hpw. Transdimensional Reconstructor 33156 | -1/Access_0 | Warped through subspace to slip node 33156 | -1/Access_0 | Discovered exit to Surface (range 8) 33172 | -1/Access_0 | Identified Matter Drive 33189 | -1/Access_0 | Crushed by falling debris 33205 | -1/Access_0 | Crushed by falling debris 33226 | -1/Access_0 | A6 warped into view 33234 | -1/Access_0 | Destroyed A6 33264 | -1/Access_0 | Used Integrity Redistributor, redistributed integrity from core (-92) 33273 | -1/Access_0 | Architect warped through subspace 33290 | -1/Access_0 | Subspace Access Node disabled 33321 | -1/Access_0 | Architect warped through subspace 33366 | -1/Access_0 | Architect warped through subspace 33415 | -1/Access_0 | Architect warped through subspace 33451 | -1/Access_0 | Architect warped through subspace 33465 | -1/Access_0 | A5 warped into view 33480 | -1/Access_0 | Architect warped through subspace 33500 | -1/Access_0 | Destroyed A5 33506 | -1/Access_0 | Architect warped through subspace 33537 | -1/Access_0 | Architect warped through subspace 33563 | -1/Access_0 | Architect warped through subspace 33582 | -1/Access_0 | Found Exp. Phase Shifter 33587 | -1/Access_0 | Used Integrity Redistributor, redistributed integrity from core (-151) 33591 | -1/Access_0 | Architect warped through subspace 33593 | -1/Access_0 | Found Exp. Phase Shifter 33633 | -1/Access_0 | Core integrity fell below 50% 33641 | -1/Access_0 | Architect warped through subspace 33674 | -1/Access_0 | Architect warped through subspace 33676 | -1/Access_0 | Build established: Scavenger-Mutant 33687 | -1/Access_0 | Found Beam Splitter 33695 | -1/Access_0 | Architect warped through subspace 33726 | -1/Access_0 | Architect warped through subspace 33749 | -1/Access_0 | Architect warped through subspace 33767 | -1/Access_0 | Architect warped through subspace 33772 | -1/Access_0 | Subspace Access Node disabled 33787 | -1/Access_0 | Architect warped through subspace 33794 | -1/Access_0 | Subspace Access Node disabled 33799 | -1/Access_0 | Architect warped through subspace 33824 | -1/Access_0 | Architect warped through subspace 33856 | -1/Access_0 | Architect warped through subspace 33890 | -1/Access_0 | Crushed by falling debris 33912 | -1/Access_0 | Architect warped through subspace 33931 | -1/Access_0 | Architect warped through subspace 33944 | -1/Access_0 | Architect warped through subspace 33961 | -1/Access_0 | Architect warped through subspace 33974 | -1/Access_0 | Architect warped through subspace 33975 | -1/Access_0 | Subspace Access Node disabled 33986 | -1/Access_0 | A4 warped into view 33997 | -1/Access_0 | Destroyed Architect 33998 | -1/Access_0 | Architect triggered a singularity event 34001 | -1/Access_0 | Found Hpw. Transdimensional Reconstructor 34009 | -1/Access_0 | Crushed by singularity! Last Messages --------------- 34003_ A0_COM: 6. 34004_ A0_COM: 5. 34004_ Remote Datajack intercepted. 34005_ A0_COM: 4. 34005_ Remote Datajack intercepted. 34005_ Critical hit. 34006_ A0_COM: 3. 34006_ Jacked A4... >>parse_system Reading system data... New IDs: Hvy. Regenerative Plating System Mapper Ghost Barrier Energy Mantle Helical Railgun Gamma Rifle Quantum Rifle 34007_ A0_COM: 2. 34008_ A0_COM: 1. Map ----- +----------------------------------------------------+ | ###### ######### ####### #######???? ? ?#???????# | | ###### ######### ####### ##?# ????#??????? | | ###### ###################### ##?? ?? ??# ???#? | | ###### ###################### #??#? ??#?? ??# ? | | ## #### ###################### #####? ##?? ????? | | "## ### ###################### ##### #? ? ?? ? | | ## ### ##################### ? ? # ?? ??? | | ### ########################## ? ?? ? | | " ## ######################## ? ? ?#?? | | ### ######################### #?###? | | ##### ######################### ####?## | | ##### # #################### #??#### | | ##### #### ###################### #?####? | | ##### #### ####################### #?##?## | | ##### "############################# ########### | | ##### "############################# ##########? | | ##### "############################# #########?# | | ##### "############################ ######### | | ##### "###################### ## ########## | | ##### ############## ######## ## ########### | | ##### #############""####### # ############# | | ##### ############# "###### ############# | | ##### ############# #"##### ##### | | ####" ############ ###### ##### | | ##### "######### ;##### ##### | | ##### " ######## @ # ###### ##### | | ##""# ""######## ########### ###### ##### | | ##""# ""######## ########### | | ###" """###### "######### | | ## ####### ########## | | ## ####### ########### ##### | | ### "####### ############" ##### ## | | ##"" "####### #"! " #### ### | | ### ""#"#"#" " ## #### | | ### "" ""## #### ## #### | | # #### #### #### | | "#"""####### #### ### | | ## "# ## ####### ##### ### | | #### # ## ####### ##### #### | | ###" ## ##"#"## #### #### #### | | "" "###### # ##"##" """ ##### #### | | "" "" # ## " ""### ### | | " "" # # ###""" ### ### | | " "" " # ##"#######"" #### ### | | " # ## ###### "" "########### ### | | " # #########"# ############## ## | | # " # #### ############## ## | | " " #### ################## | | # # #### ##### ########### | | #" " "# # #### ##### ############ | +----------------------------------------------------+ Best States ------------- Heat Dissipation 132 Coolant Potential 100 Energy Generation 41 Energy Capacity 2240 Matter Stores 300 Matter Capacity 300 Sight Range 16 Robot Scan Range 30 Terrain Scan Range 30 Terrain Scan Density 1010 Jamming Range 16 Cloak Strength 5 Power Amplification 30 Additional Mass Support 25 Armor Coverage 2400 Resistance: KI 30 Resistance: TH 75 Resistance: EM 90 Propulsion Shielding 90 Utility Shielding 90 Weapon Shielding 90 Point Defense Rating 240 Weapon Cycling 30 Melee Speed Boost 20 Phase Shifting 20 Evasion (%) 90 Targeting Accuracy 12 Target Analysis 12 Core Analysis 15 Armor Integrity Analysis 90 Recoil Reduction 4 Energy Filtering 50 Particle Charging 25 Kinecelleration 50 Offensive Hacking 46 Defensive Hacking 14 Item Schematics ----------------- Cesium-ion Thruster | -8/Storage | Hacked Lrg. Storage Unit | -8/Storage | Hacked Combat Drone Bay | -7/Data Miner | Free Lgt. Regenerative Plating | -7/Data Miner | Free Cmb. Gravmag System | -7/Data Miner | Free Exp. Cesium-ion Thruster | -7/Data Miner | Free Exp. Sensor Array | -7/Data Miner | Free Exp. Terrain Scanner | -7/Data Miner | Free Cmb. Antigrav System | -6/Factory | Scanalyzed Fusion Compressor | -6/Hub_04(d) | Hacked Centrium Medium Armor Plating | -5/Factory | Scanalyzed Adv. Focal Shield | -5/Factory | Hacked Prc. Matter Filter | -5/Factory | Scanalyzed Imp. Propulsion Shielding | -5/Factory | Scanalyzed Exp. Signal Interpreter | -5/Factory | Hacked Exp. Utility Shielding | -5/Factory | Hacked Exp. Terrain Scan Processor | -5/Factory | Hacked Exp. Propulsion Shielding | -5/Factory | Hacked Adv. Force Field | -5/Factory | Hacked Assault Drone Bay | -5/Zhirov | Free Exp. Heat Sink | -5/Zhirov | Free Exp. Optical Array | -5/Zhirov | Free Imp. Arc Thrower | -5/Zhirov | Free Mni. Smartbomb Launcher | -4/Factory | Hacked Exp. Weapon Shielding | -4/Factory | Hacked Adv. Heavy Siege Treads | -4/Factory | Hacked Imp. Powered Armor | -4/Factory | Hacked Cmb. Linear Gravjet | -3/Testing | Hacked Exp. Weapon Cycler | -1/Access | Hacked Exp. Phase Shifter | -1/Access | Hacked Robot Schematics ------------------ S-27 Virus | -7/Data Miner | Free G-50 Soldier | -7/Data Miner | Free G-67 Veteran | -7/Data Miner | Free L-41 Fighter | -7/Data Miner | Free I-36 Angel | -7/Data Miner | Free I-47 Archangel | -7/Data Miner | Free C-65 Expert | -2/Section 7 | Hacked H-88 Terminator | -1/Access | Hacked Fabricated ------------ Exp. Terrain Scanner | x1 | -6/Factory Exp. Sensor Array | x1 | -6/Factory Cmb. Antigrav System | x2 | -5/Factory Exp. Signal Interpreter | x1 | -5/Factory Exp. Utility Shielding | x1 | -5/Factory Exp. Propulsion Shielding | x1 | -5/Factory Exp. Terrain Scan Processor | x1 | -5/Factory Exp. Terrain Scan Processor | x1 | -5/Factory Exp. Sensor Array | x1 | -4/Factory Exp. Utility Shielding | x1 | -4/Factory Mni. Smartbomb Launcher | x1 | -4/Factory Imp. Powered Armor | x1 | -4/Factory Exp. Utility Shielding | x1 | -4/Factory Cmb. Linear Gravjet | x2 | -3/Testing Cmb. Linear Gravjet | x2 | -3/Testing Exp. Weapon Cycler | x1 | -1/Access Exp. Phase Shifter | x1 | -1/Access Alien Tech Used ----------------- Integrated Dissipator Core Membrane Subatomic Replicator LRC Armor Integrity Redistributor Core Regenerator Transdimensional Reconstructor High-powered Transdimensional Reconstructor Matter Drive Achievements -------------- Pyromaniac Challenges ------------ None Game ------ Seed ArmoredSuperchargedWeb Manual? 0 Play Time 10:30:26 Cumulative 773.2 hours Start 2019.11.24 @ 07:41:51 End 2019.11.25 @ 08:33:50 Sessions 3 Manual Loads 0 Difficulty Rogue Special Mode None Game No. 211 Rogue 211 Adventurer 0 Explorer 0 Win Type - Total 40 Types 31/0/2/3/2/1/1 Lore% 96 Gallery% 98 Achievement% 94 Wizard Run 0 Options --------- ASCII 0 Keyboard 1 Movement Numpad Keybinds 0 Fullscreen 1 Font 18/SmallcapsGlow Map View 76x50 Tactical HUD 1 Map Filters NONE Filters NONE Steam 1 RUN: e3678b71-70f4-4568-a033-8d3c3696f87a